Workbook

Sheet RawWikipediaList
A1: FROM: | B1: Mark Biegert
A2: SUBJECT: | B2: List of Mountain Elevations from the Wikipedia
A3: DATE: | B3: 2014-12-17
A5: This page contains the result of my copy and paste from this Wikipedia page.
A6: Link
B8: 1 8,000 metres
B9: 2 7,000 metres
B10: 3 6,000 metres
B11: 4 5,000 metres
B12: 5 4,000 metres
B13: 6 3,000 metres
B14: 7 2,000 metres
B15: 8 1,000 metres
B16: 9 Under 1,000 metres
B17: 10 See also
B19: 8,000 metres[edit]
B21: There are 14 mountains over 8,000 metres (26,247 ft) and are often referred to as the Eight-thousanders. All are located in the two highest mountain ranges in the world, the Himalayas and the Karakoram.
B23: Mt. Everest – 8,848 m (29,029 ft)
B24: K2 – 8,611 m (28,251 ft)
B25: Mountain | C25: Metres | D25: Feet | E25: Range | F25: Location and Notes
B26: Mount Everest | C26: 8848 | D26: 29029 | E26: Himalayas | F26: Nepal/China (Tibet)
B27: K2 | C27: 8611 | D27: 28251 | E27: Karakoram | F27: China/Pakistan (Gilgit–Baltistan) – The "Savage Mountain".
B28: Kangchenjunga | C28: 8586 | D28: 28169 | E28: Himalayas | F28: Nepal/India – Considered to be highest until 1849.
F29: Highest peak in India.
B30: Lhotse | C30: 8516 | D30: 27940 | E30: Himalayas | F30: Nepal/China (Tibet) – Climbers ascend Lhotse Face in climbing Everest
B31: Makalu | C31: 8462 | D31: 27762 | E31: Himalayas | F31: Nepal/China (Tibet)
B32: Cho Oyu | C32: 8201 | D32: 26906 | E32: Himalayas | F32: Nepal/China (Tibet) – Considered "easiest" eight-thousander
B33: Dhaulagiri | C33: 8167 | D33: 26795 | E33: Himalayas | F33: Nepal – Presumed world's highest from 1808-1838
B34: Manaslu | C34: 8156 | D34: 26759 | E34: Himalayas | F34: Nepal
B35: Nanga Parbat | C35: 8125 | D35: 26657 | E35: Himalayas | F35: Pakistan
B36: Annapurna | C36: 8091 | D36: 26545 | E36: Himalayas | F36: Nepal – First eight-thousander to be climbed (1950)
B37: Gasherbrum I | C37: 8068 | D37: 26470 | E37: Karakoram | F37: China/Pakistan – Originally named K5
B38: Broad Peak | C38: 8047 | D38: 26401 | E38: Karakoram | F38: China/Pakistan – Originally named K3
B39: Gasherbrum II | C39: 8035 | D39: 26362 | E39: Karakoram | F39: China/Pakistan – Originally named K4
B40: Shishapangma | C40: 8012 | D40: 26286 | E40: Himalayas | F40: China (Tibet)
B42: 7,000 metres[edit]
B44: Left to right: Gasherbrum IV, VII, V, VI
B45: Nanda Devi - 7,816 m (25,643 ft)
B46: Rakaposhi - 7,788 m (25,551 ft)
B47: Annapurna I and South (left)
B48: Muztagh Tower - 7,273 m (23,862 ft)
B49: Baruntse - 7,220 m (23,688 ft)
B50: Pumori - 7,161 m (23,494 ft)
B51: Mountain | C51: Metres | D51: Feet | E51: Range | F51: Location and Notes
B52: Gyachung Kang | C52: 7952 | D52: 26089 | E52: Himalayas | F52: Nepal (Khumbu)/China (Tibet)
B53: Gasherbrum III | C53: 7946 | D53: 26070 | E53: Karakoram | F53: China/Pakistan
B54: Annapurna II | C54: 7937 | D54: 26040 | E54: Himalayas | F54: Nepal
B55: Gasherbrum IV | C55: 7932 | D55: 26024 | E55: Karakoram | F55: China/Pakistan
B56: Himalchuli | C56: 7893 | D56: 25896 | E56: Himalayas | F56: Manaslu, Nepal
B57: Distaghil Sar | C57: 7885 | D57: 25869 | E57: Karakoram | F57: Pakistan
B58: Ngadi Chuli | C58: 7871 | D58: 25823 | E58: Himalayas | F58: Manaslu, Nepal
B59: Nuptse | C59: 7861 | D59: 25791 | E59: Himalayas | F59: Everest Massif, Nepal
B60: Khunyang Chhish | C60: 7852 | D60: 25761 | E60: Karakoram | F60: Pakistan
B61: Masherbrum | C61: 7821 | D61: 25659 | E61: Karakoram | F61: Pakistan – Originally named K1
B62: Nanda Devi | C62: 7816 | D62: 25643 | E62: Himalayas | F62: India (Uttarakand) – #2 in India
B63: Chomo Lonzo | C63: 7804 | D63: 25604 | E63: Himalayas | F63: Makalu Massiff, Nepal/China (Tibet)
B64: Batura Sar | C64: 7795 | D64: 25574 | E64: Karakoram | F64: Pakistan
B65: Kanjut Sar | C65: 7790 | D65: 25558 | E65: Karakoram | F65: Pakistan
B66: Rakaposhi | C66: 7788 | D66: 25551 | E66: Karakoram | F66: Pakistan
B67: Namcha Barwa | C67: 7782 | D67: 25531 | E67: Himalayas | F67: China (Tibet)
B68: Batura II | C68: 7762 | D68: 25466 | E68: Karakoram | F68: Pakistan
B69: Kamet | C69: 7756 | D69: 25446 | E69: Himalayas | F69: India (Uttarakand)
B70: Saltoro Kangri | C70: 7742 | D70: 25400 | E70: Karakoram | F70: Kashmir, Pakistan/India
B71: Batura III | C71: 7729 | D71: 25358 | E71: Karakoram | F71: Pakistan
B72: Kongur Tagh | C72: 7719 | D72: 25325 | E72: Kunlun Mountains | F72: China – Possibly 7649? metres
B73: Jannu | C73: 7710 | D73: 25295 | E73: Himalayas | F73: Kangchenjunga, Nepal
B74: Molamenqing | C74: 7710 | D74: 25295 | E74: Himalayas | F74: Shishapangma group, China (Tibet)
B75: Gurla Mandhata | C75: 7694 | D75: 25243 | E75: Himalayas (Nalakankar) | F75: China (Tibet)
B76: Tirich Mir | C76: 7690 | D76: 25230 | E76: Hindu Kush | F76: Pakistan – #1 in Hindu Kush
B77: Saser Kangri | C77: 7672 | D77: 25171 | E77: Karakoram | F77: India
B78: Chogolisa | C78: 7665 | D78: 25148 | E78: Karakoram | F78: Pakistan
B79: Shispare | C79: 7611 | D79: 24970 | E79: Karakoram | F79: Pakistan
B80: Changtse | C80: 7583 | D80: 24879 | E80: Himalayas | F80: Everest Massif, China (Tibet)
B81: Trivor | C81: 7577 | D81: 24859 | E81: Karakoram | F81: Pakistan
B82: Gangkhar Puensum | C82: 7570 | D82: 24836 | E82: Himalayas | F82: Bhutan/China (Tibet)
B83: Gongga Shan | C83: 7556 | D83: 24790 | E83: Daxue Shan | F83: Sichuan, China
B84: Annapurna III | C84: 7555 | D84: 24787 | E84: Himalayas | F84: Nepal
B85: Kula Kangri | C85: 7554 | D85: 24783 | E85: Himalayas | F85: China (Tibet) (possibly also Bhutan)
B86: Chogolisa II | C86: 7554 | D86: 24783 | E86: Karakoram | F86: Pakistan
B87: Muztagh Ata | C87: 7546 | D87: 24757 | E87: Kongur Tagh | F87: China (Xinjiang)
B88: Skyang Kangri | C88: 7545 | D88: 24754 | E88: Karakoram | F88: Pakistan/China
B89: Yukshin Gardan Sar | C89: 7530 | D89: 24705 | E89: Karakoram | F89: Pakistan
B90: Annapurna IV | C90: 7525 | D90: 24688 | E90: Himalayas | F90: Nepal
B91: Mamostong Kangri | C91: 7516 | D91: 24659 | E91: Karakoram | F91: Kashmir, India
B92: Ismoil Somoni Peak | C92: 7495 | D92: 24590 | E92: Pamir Mountains | F92: Tajikistan
B93: Noshaq | C93: 7492 | D93: 24580 | E93: Hindu Kush | F93: Afghanistan – #1 in Afghanistan
B94: Pumari Chhish | C94: 7492 | D94: 24580 | E94: Karakoram | F94: Pakistan
B95: Passu Sar | C95: 7476 | D95: 24528 | E95: Karakoram | F95: Pakistan
B96: Malubiting | C96: 7458 | D96: 24469 | E96: Karakoram | F96: Pakistan
B97: Gangapurna | C97: 7455 | D97: 24459 | E97: Annapurna Himalaya | F97: Nepal
B98: Jengish Chokusu | C98: 7439 | D98: 24406 | E98: Tian Shan | F98: China/Kyrgyzstan – #1 in Tian Shan
B99: K12 | C99: 7428 | D99: 24370 | E99: Karakoram | F99: Pakistan
B100: Istor-o-Nal | C100: 7403 | D100: 24288 | E100: Hindu Kush | F100: Pakistan
B101: Ghent Kangri | C101: 7401 | D101: 24281 | E101: Karakoram | F101: Pakistan
B102: Haramosh Peak | C102: 7397 | D102: 24268 | E102: Karakoram | F102: Pakistan
B103: Kabru | C103: 7394 | D103: 24259 | E103: Himalayas | F103: Kanchenjunga, India/Nepal
B104: Ultar | C104: 7388 | D104: 24239 | E104: Karakoram | F104: Pakistan
B105: Rimo I | C105: 7385 | D105: 24229 | E105: Karakoram | F105: India
B106: Sherpi Kangri | C106: 7380 | D106: 24213 | E106: Karakoram | F106: India
B107: Labuche Kang | C107: 7367 | D107: 24170 | E107: Himalayas | F107: near Cho Oyu, Nepal/China (Tibet)
B108: Kirat Chuli | C108: 7365 | D108: 24163 | E108: Himalayas | F108: Nepal/India border
B109: Skil Brum | C109: 7360 | D109: 24147 | E109: Karakoram | F109: Pakistan – May also be given as 7,410 m
B110: Gimmigela Chuli | C110: 7350 | D110: 24114 | E110: Himalayas | F110: Nepal/India border
B111: Bojohagur Duanasir | C111: 7329 | D111: 24045 | E111: Karakoram | F111: Pakistan
B112: Chamlang | C112: 7319 | D112: 24012 | E112: Himalayas | F112: Khumbu, Nepal
B113: Jomolhari / Chomolhari | C113: 7314 | D113: 23996 | E113: Himalayas | F113: Bhutan/China (Tibet)
B114: Baltoro Kangri | C114: 7312 | D114: 23990 | E114: Karakoram | F114: Pakistan
B115: Siguang Ri | C115: 7308 | D115: 23976 | E115: Himalayas | F115: China (Tibet)
B116: The Crown | C116: 7295 | D116: 23934 | E116: Karakoram | F116: China (Xinjiang)
B117: Gyala Peri | C117: 7294 | D117: 23930 | E117: Himalayas | F117: China (Tibet)
B118: Porong Ri | C118: 7292 | D118: 23924 | E118: Himalayas | F118: China (Tibet)
B119: Baintha Brakk | C119: 7285 | D119: 23901 | E119: Karakoram | F119: Pakistan
B120: Yutmaru Sar | C120: 7283 | D120: 23894 | E120: Karakoram | F120: Pakistan
B121: K6 | C121: 7282 | D121: 23891 | E121: Karakoram | F121: Pakistan – Also known as Baltistan Peak
B122: Kangpenqing | C122: 7281 | D122: 23888 | E122: Himalayas | F122: China (Tibet)
B123: Mana Peak | C123: 7272 | D123: 23858 | E123: Himalayas | F123: India (Uttarakand) – SSE of Kamet
B124: Muztagh Tower | C124: 7273 | D124: 23862 | E124: Karakoram | F124: Pakistan
B125: Diran | C125: 7257 | D125: 23809 | E125: Karakoram | F125: Pakistan
B126: Apsarasas Kangri | C126: 7245 | D126: 23770 | E126: Karakoram | F126: China/Pakistan
B127: Langtang Lirung | C127: 7227 | D127: 23711 | E127: Himalayas | F127: Nepal
B128: Khartaphu | C128: 7213 | D128: 23665 | E128: Himalayas | F128: China (Tibet)
B129: Tongshanjiabu | C129: 7207 | D129: 23645 | E129: Himalayas | F129: Bhutan/China
B130: Langtang Ri | C130: 7205 | D130: 23638 | E130: Himalayas | F130: Nepal/China (Tibet)
B131: Kangphu Kang | C131: 7204 | D131: 23635 | E131: Himalayas | F131: Bhutan/China
B132: Annapurna South | C132: 7219 | D132: 23684 | E132: Himalayas | F132: Nepal
B133: Melungtse | C133: 7181 | D133: 23560 | E133: Rolwaling Himalayas | F133: China (Tibet)
B134: Liushi Shan | C134: 7167 | D134: 23514 | E134: Kunlun | F134: China – #1 in Kunlun
B135: Baruntse | C135: 7162 | D135: 23497 | E135: Himalayas | F135: Khumbu, Nepal
B136: Pumori | C136: 7161 | D136: 23494 | E136: Himalayas | F136: Khumbu, Nepal
B137: Nemjung | C137: 7140 | D137: 23425 | E137: Himalayas | F137: Nepal
B138: Udren Zom | C138: 7140 | D138: 23425 | E138: Hindu Kush | F138: Pakistan
B139: Nun Kun | C139: 7135 | D139: 23409 | E139: Karakoram | F139: India
B140: Tilicho Peak | C140: 7134 | D140: 23406 | E140: Himalayas | F140: Annapurna Himal, Nepal
B141: Gauri Sankar | C141: 7134 | D141: 23406 | E141: Rolwaling Himalayas | F141: Nepal/China (Tibet)
B142: Lenin Peak | C142: 7134 | D142: 23406 | E142: Pamir Mountains | F142: Tajikistan-Kyrgyzstan – #2 in Pamirs
B143: Api | C143: 7132 | D143: 23399 | E143: Himalayas | F143: Nepal
B144: Pauhunri | C144: 7128 | D144: 23386 | E144: Himalayas | F144: India/China (Tibet)
B145: Korzhenevskaya | C145: 7105 | D145: 23310 | E145: Pamir Mountains | F145: Tajikistan – #3 in Pamirs
B146: Lunpo Gangri | C146: 7095 | D146: 23278 | E146: Himalayas (Gangdise) | F146: China (Tibet)
B147: Dunagiri | C147: 7066 | D147: 23182 | E147: Himalayas | F147: India (Uttarakand)
B148: Kangto | C148: 7060 | D148: 23163 | E148: Himalayas | F148: India/China (Tibet)
B149: Nyegyi Kansang | C149: 7047 | D149: 23120 | E149: Himalayas | F149: India/China (Tibet)
B150: Kezhen Peak | C150: 7038 | D150: 23091 | E150: Karakoram | F150: China (Xinjiang)
B151: Shah Dhar | C151: 7038 | D151: 23091 | E151: Hindu Kush | F151: Afghanistan/Pakistan
B152: Spantik | C152: 7027 | D152: 23054 | E152: Karakoram | F152: Pakistan
B153: Khan Tengri | C153: 7010 | D153: 22999 | E153: Tian Shan | F153: Kyrgyzstan-Kazakhstan – #2 in Tian Shan
B155: 6,000 metres[edit]
B157: Machapuchare - 6,993 m (22,943 ft)
B158: Ama Dablam - 6,812 m (22,349 ft)
B159: Huascarán - 6,768 m (22,205 ft)
B160: Chimborazo - 6,267 m (20,561 ft)
B161: Imja Tse - 6,160 m (20,210 ft)
B162: Mitre Peak - 6,010 m (19,718 ft)
B163: Mountain | C163: Metres | D163: Feet | E163: Location and Notes
B164: Machapuchare | C164: 6993 | D164: 22943 | E164: Annapurna Himalaya, Nepal – Officially unclimbed (attempts not allowed)
B165: Kang Guru | C165: 6981 | D165: 22904 | E165: Manaslu Himalaya, Nepal – 2005 avalanche kills 18
B166: Avicenna Peak | C166: 6974 | D166: 22881 | E166: Pamir Mountains, Tajikistan – #3 in Pamirs
B167: Ulugh Muztagh | C167: 6973 | D167: 22877 | E167: Kunlun Mountains, Tibet – Often misquoted as 7,723 m
B168: Aconcagua | C168: 6962 | D168: 22841 | E168: Andes, Argentina – Highest in both the Western and Southern Hemispheres
B169: Lunkho e Dosare | C169: 6901 | D169: 22641 | E169: Hindu Kush, Afghanistan-Pakistan
B170: Ojos del Salado | C170: 6891 | D170: 22608 | E170: Andes, Argentina-Chile – Highest volcano on Earth
B171: Siniolchu | C171: 6888 | D171: 22598 | E171: Kangchenjunga Himalaya, India
B172: Nanda Kot | C172: 6861 | D172: 22510 | E172: Kumaon Himalayas, India
B173: Angel Sar | C173: 6858 | D173: 22500 | E173: Karakoram, Pakistan
B174: Chongra Peak | C174: 6830 | D174: 22408 | E174: Nanga Parbat Himalaya, Pakistan
B175: Ama Dablam | C175: 6812 | D175: 22349 | E175: Himalayas, Nepal (Khumbu)
B176: Monte Pissis | C176: 6795 | D176: 22293 | E176: Andes, Argentina – Third highest in Western Hemisphere
B177: Biarchedi | C177: 6781 | D177: 22247 | E177: Karakoram, Pakistan
B178: Huascarán Sur | C178: 6768 | D178: 22205 | E178: Andes, Peru – Highest
B179: Nevado Tres Cruces | C179: 6749 | D179: 22142 | E179: Andes, Argentina/Chile
B180: Kawagarbo | C180: 6740 | D180: 22113 | E180: Himalayas, China (Yunnan/Tibet)
B181: Llullaillaco | C181: 6739 | D181: 22110 | E181: Andes, Argentina/Chile
B182: Cho Polu | C182: 6735 | D182: 22096 | E182: Himalayas, Nepal (Khumbu)
B183: Mount Pandim | C183: 6691 | D183: 21952 | E183: Himalayas, India (Sikkim)
B184: Num Ri | C184: 6677 | D184: 21906 | E184: Himalayas, Nepal (Khumbu)
B185: Gul Lasht Zom | C185: 6657 | D185: 21841 | E185: Hindu Kush, Pakistan
B186: Huascarán Norte | C186: 6655 | D186: 21834 | E186: Andes, Peru
B187: Khumbutse | C187: 6640 | D187: 21785 | E187: Himalayas, Nepal (Khumbu)/China (Tibet) – First peak west of Everest
B188: Mount Kailash | C188: 6638 | D188: 21778 | E188: Transhimalaya, western Tibet – Officially unclimbed (attempts not allowed)
B189: Yerupajá | C189: 6635 | D189: 21768 | E189: Andes, Peru
B190: Thamserku | C190: 6623 | D190: 21729 | E190: Himalayas, Nepal (Khumbu)
B191: Incahuasi | C191: 6621 | D191: 21722 | E191: Andes, Argentina/Chile
B192: Manirang | C192: 6597 | D192: 21644 | E192: Himalayas, India (Himachal Pradesh)
B193: Nilkantha | C193: 6596 | D193: 21640 | E193: Himalayas, India (Uttarakhand)
B194: Phuparash Peak | C194: 6574 | D194: 21568 | E194: Karakoram, Pakistan
B195: Sickle Moon Peak | C195: 6574 | D195: 21568 | E195: Himalayas, Kashmir, India
B196: Buni Zom | C196: 6551 | D196: 21493 | E196: Hindu Kush, Pakistan
B197: Nevado Sajama | C197: 6542 | D197: 21463 | E197: Andes, Bolivia – Highest
B198: Singu Chuli | C198: 6501 | D198: 21329 | E198: Annapurna Himalayas, Nepal
B199: Taboche | C199: 6501 | D199: 21329 | E199: Himalayas, Nepal (Khumbu)
B200: Cerro El Muerto | C200: 6488 | D200: 21286 | E200: Andes, Argentina/Chile
B201: Mera Peak | C201: 6476 | D201: 21247 | E201: Himalayas, Nepal (Khumbu)
B202: Illimani | C202: 6462 | D202: 21201 | E202: Andes, Bolivia
B203: Hiunchuli | C203: 6441 | D203: 21132 | E203: Annapurna Himalaya, Nepal
B204: Cholatse | C204: 6440 | D204: 21129 | E204: Himalayas, Nepal (Khumbu)
B205: Ancohuma | C205: 6427 | D205: 21086 | E205: Andes, Bolivia
B206: Coropuna | C206: 6425 | D206: 21079 | E206: Andes, Peru
B207: Antofalla | C207: 6409 | D207: 21027 | E207: Andes, Argentina
B208: Huandoy | C208: 6395 | D208: 20981 | E208: Andes, Peru
B209: Illampu | C209: 6368 | D209: 20892 | E209: Andes, Bolivia
... 1176 more rows

Sheet MountainList
A1: FROM: | B1: Mark Biegert
A2: SUBJECT: | B2: Cleaned Up List of Mountains From Wikipedia
A3: DATE: | B3: 2013-12-17
A5: I have taken all the mountains from the RawWikipediaList tab and putting them into a single list.
B7: Mountain | C7: Metres | D7: Feet | E7: Range | F7: Location and Notes
B8: Everest | C8: 8848 | D8: 29029 | E8: Himalayas | F8: Nepal/China (Tibet)
B9: K2 | C9: 8611 | D9: 28251 | E9: Karakoram | F9: China/Pakistan (Gilgit–Baltistan) – The "Savage Mountain".
B10: Kangchenjunga | C10: 8586 | D10: 28169 | E10: Himalayas | F10: Nepal/India – Considered to be highest until 1849.
B11: Lhotse | C11: 8516 | D11: 27940 | E11: Himalayas | F11: Nepal/China (Tibet) – Climbers ascend Lhotse Face in climbing Everest
B12: Makalu | C12: 8462 | D12: 27762 | E12: Himalayas | F12: Nepal/China (Tibet)
B13: Cho Oyu | C13: 8201 | D13: 26906 | E13: Himalayas | F13: Nepal/China (Tibet) – Considered "easiest" eight-thousander
B14: Dhaulagiri | C14: 8167 | D14: 26795 | E14: Himalayas | F14: Nepal – Presumed world's highest from 1808-1838
B15: Manaslu | C15: 8156 | D15: 26759 | E15: Himalayas | F15: Nepal
B16: Nanga Parbat | C16: 8125 | D16: 26657 | E16: Himalayas | F16: Pakistan
B17: Annapurna | C17: 8091 | D17: 26545 | E17: Himalayas | F17: Nepal – First eight-thousander to be climbed (1950)
B18: Gasherbrum I | C18: 8068 | D18: 26470 | E18: Karakoram | F18: China/Pakistan – Originally named K5
B19: Broad Peak | C19: 8047 | D19: 26401 | E19: Karakoram | F19: China/Pakistan – Originally named K3
B20: Gasherbrum II | C20: 8035 | D20: 26362 | E20: Karakoram | F20: China/Pakistan – Originally named K4
B21: Shishapangma | C21: 8012 | D21: 26286 | E21: Himalayas | F21: China (Tibet)
B22: Gyachung Kang | C22: 7952 | D22: 26089 | E22: Himalayas | F22: Nepal (Khumbu)/China (Tibet)
B23: Gasherbrum III | C23: 7946 | D23: 26070 | E23: Karakoram | F23: China/Pakistan
B24: Annapurna II | C24: 7937 | D24: 26040 | E24: Himalayas | F24: Nepal
B25: Gasherbrum IV | C25: 7932 | D25: 26024 | E25: Karakoram | F25: China/Pakistan
B26: Himalchuli | C26: 7893 | D26: 25896 | E26: Himalayas | F26: Manaslu, Nepal
B27: Distaghil Sar | C27: 7885 | D27: 25869 | E27: Karakoram | F27: Pakistan
B28: Ngadi Chuli | C28: 7871 | D28: 25823 | E28: Himalayas | F28: Manaslu, Nepal
B29: Nuptse | C29: 7861 | D29: 25791 | E29: Himalayas | F29: Everest Massif, Nepal
B30: Khunyang Chhish | C30: 7852 | D30: 25761 | E30: Karakoram | F30: Pakistan
B31: Masherbrum | C31: 7821 | D31: 25659 | E31: Karakoram | F31: Pakistan – Originally named K1
B32: Nanda Devi | C32: 7816 | D32: 25643 | E32: Himalayas | F32: India (Uttarakand) – #2 in India
B33: Chomo Lonzo | C33: 7804 | D33: 25604 | E33: Himalayas | F33: Makalu Massiff, Nepal/China (Tibet)
B34: Batura Sar | C34: 7795 | D34: 25574 | E34: Karakoram | F34: Pakistan
B35: Kanjut Sar | C35: 7790 | D35: 25558 | E35: Karakoram | F35: Pakistan
B36: Rakaposhi | C36: 7788 | D36: 25551 | E36: Karakoram | F36: Pakistan
B37: Namcha Barwa | C37: 7782 | D37: 25531 | E37: Himalayas | F37: China (Tibet)
B38: Batura II | C38: 7762 | D38: 25466 | E38: Karakoram | F38: Pakistan
B39: Kamet | C39: 7756 | D39: 25446 | E39: Himalayas | F39: India (Uttarakand)
B40: Saltoro Kangri | C40: 7742 | D40: 25400 | E40: Karakoram | F40: Kashmir, Pakistan/India
B41: Batura III | C41: 7729 | D41: 25358 | E41: Karakoram | F41: Pakistan
B42: Kongur Tagh | C42: 7719 | D42: 25325 | E42: Kunlun Mountains | F42: China – Possibly 7649? metres
B43: Jannu | C43: 7710 | D43: 25295 | E43: Himalayas | F43: Kangchenjunga, Nepal
B44: Molamenqing | C44: 7710 | D44: 25295 | E44: Himalayas | F44: Shishapangma group, China (Tibet)
B45: Gurla Mandhata | C45: 7694 | D45: 25243 | E45: Himalayas (Nalakankar) | F45: China (Tibet)
B46: Tirich Mir | C46: 7690 | D46: 25230 | E46: Hindu Kush | F46: Pakistan – #1 in Hindu Kush
B47: Saser Kangri | C47: 7672 | D47: 25171 | E47: Karakoram | F47: India
B48: Chogolisa | C48: 7665 | D48: 25148 | E48: Karakoram | F48: Pakistan
B49: Shispare | C49: 7611 | D49: 24970 | E49: Karakoram | F49: Pakistan
B50: Changtse | C50: 7583 | D50: 24879 | E50: Himalayas | F50: Everest Massif, China (Tibet)
B51: Trivor | C51: 7577 | D51: 24859 | E51: Karakoram | F51: Pakistan
B52: Gangkhar Puensum | C52: 7570 | D52: 24836 | E52: Himalayas | F52: Bhutan/China (Tibet)
B53: Gongga Shan | C53: 7556 | D53: 24790 | E53: Daxue Shan | F53: Sichuan, China
B54: Annapurna III | C54: 7555 | D54: 24787 | E54: Himalayas | F54: Nepal
B55: Kula Kangri | C55: 7554 | D55: 24783 | E55: Himalayas | F55: China (Tibet) (possibly also Bhutan)
B56: Chogolisa II | C56: 7554 | D56: 24783 | E56: Karakoram | F56: Pakistan
B57: Muztagh Ata | C57: 7546 | D57: 24757 | E57: Kongur Tagh | F57: China (Xinjiang)
B58: Skyang Kangri | C58: 7545 | D58: 24754 | E58: Karakoram | F58: Pakistan/China
B59: Yukshin Gardan Sar | C59: 7530 | D59: 24705 | E59: Karakoram | F59: Pakistan
B60: Annapurna IV | C60: 7525 | D60: 24688 | E60: Himalayas | F60: Nepal
B61: Mamostong Kangri | C61: 7516 | D61: 24659 | E61: Karakoram | F61: Kashmir, India
B62: Ismoil Somoni Peak | C62: 7495 | D62: 24590 | E62: Pamir Mountains | F62: Tajikistan
B63: Noshaq | C63: 7492 | D63: 24580 | E63: Hindu Kush | F63: Afghanistan – #1 in Afghanistan
B64: Pumari Chhish | C64: 7492 | D64: 24580 | E64: Karakoram | F64: Pakistan
B65: Passu Sar | C65: 7476 | D65: 24528 | E65: Karakoram | F65: Pakistan
B66: Malubiting | C66: 7458 | D66: 24469 | E66: Karakoram | F66: Pakistan
B67: Gangapurna | C67: 7455 | D67: 24459 | E67: Annapurna Himalaya | F67: Nepal
B68: Jengish Chokusu | C68: 7439 | D68: 24406 | E68: Tian Shan | F68: China/Kyrgyzstan – #1 in Tian Shan
B69: K12 | C69: 7428 | D69: 24370 | E69: Karakoram | F69: Pakistan
B70: Istor-o-Nal | C70: 7403 | D70: 24288 | E70: Hindu Kush | F70: Pakistan
B71: Ghent Kangri | C71: 7401 | D71: 24281 | E71: Karakoram | F71: Pakistan
B72: Haramosh Peak | C72: 7397 | D72: 24268 | E72: Karakoram | F72: Pakistan
B73: Kabru | C73: 7394 | D73: 24259 | E73: Himalayas | F73: Kanchenjunga, India/Nepal
B74: Ultar | C74: 7388 | D74: 24239 | E74: Karakoram | F74: Pakistan
B75: Rimo I | C75: 7385 | D75: 24229 | E75: Karakoram | F75: India
B76: Sherpi Kangri | C76: 7380 | D76: 24213 | E76: Karakoram | F76: India
B77: Labuche Kang | C77: 7367 | D77: 24170 | E77: Himalayas | F77: near Cho Oyu, Nepal/China (Tibet)
B78: Kirat Chuli | C78: 7365 | D78: 24163 | E78: Himalayas | F78: Nepal/India border
B79: Skil Brum | C79: 7360 | D79: 24147 | E79: Karakoram | F79: Pakistan – May also be given as 7,410 m
B80: Gimmigela Chuli | C80: 7350 | D80: 24114 | E80: Himalayas | F80: Nepal/India border
B81: Bojohagur Duanasir | C81: 7329 | D81: 24045 | E81: Karakoram | F81: Pakistan
B82: Chamlang | C82: 7319 | D82: 24012 | E82: Himalayas | F82: Khumbu, Nepal
B83: Jomolhari / Chomolhari | C83: 7314 | D83: 23996 | E83: Himalayas | F83: Bhutan/China (Tibet)
B84: Baltoro Kangri | C84: 7312 | D84: 23990 | E84: Karakoram | F84: Pakistan
B85: Siguang Ri | C85: 7308 | D85: 23976 | E85: Himalayas | F85: China (Tibet)
B86: The Crown | C86: 7295 | D86: 23934 | E86: Karakoram | F86: China (Xinjiang)
B87: Gyala Peri | C87: 7294 | D87: 23930 | E87: Himalayas | F87: China (Tibet)
B88: Porong Ri | C88: 7292 | D88: 23924 | E88: Himalayas | F88: China (Tibet)
B89: Baintha Brakk | C89: 7285 | D89: 23901 | E89: Karakoram | F89: Pakistan
B90: Yutmaru Sar | C90: 7283 | D90: 23894 | E90: Karakoram | F90: Pakistan
B91: K6 | C91: 7282 | D91: 23891 | E91: Karakoram | F91: Pakistan – Also known as Baltistan Peak
B92: Kangpenqing | C92: 7281 | D92: 23888 | E92: Himalayas | F92: China (Tibet)
B93: Mana Peak | C93: 7272 | D93: 23858 | E93: Himalayas | F93: India (Uttarakand) – SSE of Kamet
B94: Muztagh Tower | C94: 7273 | D94: 23862 | E94: Karakoram | F94: Pakistan
B95: Diran | C95: 7257 | D95: 23809 | E95: Karakoram | F95: Pakistan
B96: Apsarasas Kangri | C96: 7245 | D96: 23770 | E96: Karakoram | F96: China/Pakistan
B97: Langtang Lirung | C97: 7227 | D97: 23711 | E97: Himalayas | F97: Nepal
B98: Khartaphu | C98: 7213 | D98: 23665 | E98: Himalayas | F98: China (Tibet)
B99: Tongshanjiabu | C99: 7207 | D99: 23645 | E99: Himalayas | F99: Bhutan/China
B100: Langtang Ri | C100: 7205 | D100: 23638 | E100: Himalayas | F100: Nepal/China (Tibet)
B101: Kangphu Kang | C101: 7204 | D101: 23635 | E101: Himalayas | F101: Bhutan/China
B102: Annapurna South | C102: 7219 | D102: 23684 | E102: Himalayas | F102: Nepal
B103: Melungtse | C103: 7181 | D103: 23560 | E103: Rolwaling Himalayas | F103: China (Tibet)
B104: Liushi Shan | C104: 7167 | D104: 23514 | E104: Kunlun | F104: China – #1 in Kunlun
B105: Baruntse | C105: 7162 | D105: 23497 | E105: Himalayas | F105: Khumbu, Nepal
B106: Pumori | C106: 7161 | D106: 23494 | E106: Himalayas | F106: Khumbu, Nepal
B107: Nemjung | C107: 7140 | D107: 23425 | E107: Himalayas | F107: Nepal
B108: Udren Zom | C108: 7140 | D108: 23425 | E108: Hindu Kush | F108: Pakistan
B109: Nun Kun | C109: 7135 | D109: 23409 | E109: Karakoram | F109: India
B110: Tilicho Peak | C110: 7134 | D110: 23406 | E110: Himalayas | F110: Annapurna Himal, Nepal
B111: Gauri Sankar | C111: 7134 | D111: 23406 | E111: Rolwaling Himalayas | F111: Nepal/China (Tibet)
B112: Lenin Peak | C112: 7134 | D112: 23406 | E112: Pamir Mountains | F112: Tajikistan-Kyrgyzstan – #2 in Pamirs
B113: Api | C113: 7132 | D113: 23399 | E113: Himalayas | F113: Nepal
B114: Pauhunri | C114: 7128 | D114: 23386 | E114: Himalayas | F114: India/China (Tibet)
B115: Korzhenevskaya | C115: 7105 | D115: 23310 | E115: Pamir Mountains | F115: Tajikistan – #3 in Pamirs
B116: Lunpo Gangri | C116: 7095 | D116: 23278 | E116: Himalayas (Gangdise) | F116: China (Tibet)
B117: Dunagiri | C117: 7066 | D117: 23182 | E117: Himalayas | F117: India (Uttarakand)
B118: Kangto | C118: 7060 | D118: 23163 | E118: Himalayas | F118: India/China (Tibet)
B119: Nyegyi Kansang | C119: 7047 | D119: 23120 | E119: Himalayas | F119: India/China (Tibet)
B120: Kezhen Peak | C120: 7038 | D120: 23091 | E120: Karakoram | F120: China (Xinjiang)
B121: Shah Dhar | C121: 7038 | D121: 23091 | E121: Hindu Kush | F121: Afghanistan/Pakistan
B122: Spantik | C122: 7027 | D122: 23054 | E122: Karakoram | F122: Pakistan
B123: Khan Tengri | C123: 7010 | D123: 22999 | E123: Tian Shan | F123: Kyrgyzstan-Kazakhstan – #2 in Tian Shan
B124: Machapuchare | C124: 6993 | D124: 22943 | E124: Annapurna Himalaya, Nepal – Officially unclimbed (attempts not allowed)
B125: Kang Guru | C125: 6981 | D125: 22904 | E125: Manaslu Himalaya, Nepal – 2005 avalanche kills 18
B126: Avicenna Peak | C126: 6974 | D126: 22881 | E126: Pamir Mountains, Tajikistan – #3 in Pamirs
B127: Ulugh Muztagh | C127: 6973 | D127: 22877 | E127: Kunlun Mountains, Tibet – Often misquoted as 7,723 m
B128: Aconcagua | C128: 6962 | D128: 22841 | E128: Andes, Argentina – Highest in both the Western and Southern Hemispheres
B129: Lunkho e Dosare | C129: 6901 | D129: 22641 | E129: Hindu Kush, Afghanistan-Pakistan
B130: Ojos del Salado | C130: 6891 | D130: 22608 | E130: Andes, Argentina-Chile – Highest volcano on Earth
B131: Siniolchu | C131: 6888 | D131: 22598 | E131: Kangchenjunga Himalaya, India
B132: Nanda Kot | C132: 6861 | D132: 22510 | E132: Kumaon Himalayas, India
B133: Angel Sar | C133: 6858 | D133: 22500 | E133: Karakoram, Pakistan
B134: Chongra Peak | C134: 6830 | D134: 22408 | E134: Nanga Parbat Himalaya, Pakistan
B135: Ama Dablam | C135: 6812 | D135: 22349 | E135: Himalayas, Nepal (Khumbu)
B136: Monte Pissis | C136: 6795 | D136: 22293 | E136: Andes, Argentina – Third highest in Western Hemisphere
B137: Biarchedi | C137: 6781 | D137: 22247 | E137: Karakoram, Pakistan
B138: Huascarán Sur | C138: 6768 | D138: 22205 | E138: Andes, Peru – Highest
B139: Nevado Tres Cruces | C139: 6749 | D139: 22142 | E139: Andes, Argentina/Chile
B140: Kawagarbo | C140: 6740 | D140: 22113 | E140: Himalayas, China (Yunnan/Tibet)
B141: Llullaillaco | C141: 6739 | D141: 22110 | E141: Andes, Argentina/Chile
B142: Cho Polu | C142: 6735 | D142: 22096 | E142: Himalayas, Nepal (Khumbu)
B143: Pandim | C143: 6691 | D143: 21952 | E143: Himalayas, India (Sikkim)
B144: Num Ri | C144: 6677 | D144: 21906 | E144: Himalayas, Nepal (Khumbu)
B145: Gul Lasht Zom | C145: 6657 | D145: 21841 | E145: Hindu Kush, Pakistan
B146: Huascarán Norte | C146: 6655 | D146: 21834 | E146: Andes, Peru
B147: Khumbutse | C147: 6640 | D147: 21785 | E147: Himalayas, Nepal (Khumbu)/China (Tibet) – First peak west of Everest
B148: Kailash | C148: 6638 | D148: 21778 | E148: Transhimalaya, western Tibet – Officially unclimbed (attempts not allowed)
B149: Yerupajá | C149: 6635 | D149: 21768 | E149: Andes, Peru
B150: Thamserku | C150: 6623 | D150: 21729 | E150: Himalayas, Nepal (Khumbu)
B151: Incahuasi | C151: 6621 | D151: 21722 | E151: Andes, Argentina/Chile
B152: Manirang | C152: 6597 | D152: 21644 | E152: Himalayas, India (Himachal Pradesh)
B153: Nilkantha | C153: 6596 | D153: 21640 | E153: Himalayas, India (Uttarakhand)
B154: Phuparash Peak | C154: 6574 | D154: 21568 | E154: Karakoram, Pakistan
B155: Sickle Moon Peak | C155: 6574 | D155: 21568 | E155: Himalayas, Kashmir, India
B156: Buni Zom | C156: 6551 | D156: 21493 | E156: Hindu Kush, Pakistan
B157: Nevado Sajama | C157: 6542 | D157: 21463 | E157: Andes, Bolivia – Highest
B158: Singu Chuli | C158: 6501 | D158: 21329 | E158: Annapurna Himalayas, Nepal
B159: Taboche | C159: 6501 | D159: 21329 | E159: Himalayas, Nepal (Khumbu)
B160: Cerro El Muerto | C160: 6488 | D160: 21286 | E160: Andes, Argentina/Chile
B161: Mera Peak | C161: 6476 | D161: 21247 | E161: Himalayas, Nepal (Khumbu)
B162: Illimani | C162: 6462 | D162: 21201 | E162: Andes, Bolivia
B163: Hiunchuli | C163: 6441 | D163: 21132 | E163: Annapurna Himalaya, Nepal
B164: Cholatse | C164: 6440 | D164: 21129 | E164: Himalayas, Nepal (Khumbu)
B165: Ancohuma | C165: 6427 | D165: 21086 | E165: Andes, Bolivia
B166: Coropuna | C166: 6425 | D166: 21079 | E166: Andes, Peru
B167: Antofalla | C167: 6409 | D167: 21027 | E167: Andes, Argentina
B168: Huandoy | C168: 6395 | D168: 20981 | E168: Andes, Peru
B169: Illampu | C169: 6368 | D169: 20892 | E169: Andes, Bolivia
B170: Kusum Kangguru | C170: 6367 | D170: 20889 | E170: Himalayas, Nepal (Khumbu)
B171: Kinnaur Kailash | C171: 6349 | D171: 20830 | E171: Himalayas, Kinnaur, India
B172: Parinaquta | C172: 6348 | D172: 20827 | E172: Andes, Bolivia/Chile
B173: Siula Grande | C173: 6344 | D173: 20814 | E173: Andes, Peru
B174: Bamba Dhura | C174: 6334 | D174: 20781 | E174: Uttarakhand Himalayas, India
B175: Ampato | C175: 6288 | D175: 20630 | E175: Andes, Peru
B176: Amne Machin | C176: 6282 | D176: 20610 | E176: Kunlun Mountains, China (Qinghai)
B177: Pomerape | C177: 6282 | D177: 20610 | E177: Andes, Bolivia/Chile
B178: Salcantay | C178: 6271 | D178: 20574 | E178: Andes, Peru
B179: Chimborazo | C179: 6267 | D179: 20561 | E179: Ecuador – Furthest point from Earth's center
B180: McKinley | C180: 6168 | D180: 20236 | E180: Alaska Range, United States (Alaska) – Highest in North America
B181: Kongde Ri | C181: 6187 | D181: 20299 | E181: Himalayas, Nepal (Khumbu)
B182: Aucanquilcha | C182: 6176 | D182: 20262 | E182: Andes, Chile
B183: Imja Tse | C183: 6160 | D183: 20210 | E183: Himalayas, Nepal (Khumbu)
B184: Stok Kangri | C184: 6137 | D184: 20135 | E184: Stok Range, Himalayas, India
B185: Pisang Peak | C185: 6091 | D185: 19984 | E185: Annapurna Himalaya, Nepal
B186: Huayna Potosí | C186: 6088 | D186: 19974 | E186: Andes, Bolivia
B187: Aracar | C187: 6082 | D187: 19954 | E187: Andes, Argentina
B188: Chachakumani | C188: 6074 | D188: 19928 | E188: Andes, Bolivia
B189: Chachani | C189: 6057 | D189: 19872 | E189: Andes, Peru
B190: Acotango | C190: 6052 | D190: 19856 | E190: Andes, Bolivia/Chile
B191: Socompa | C191: 6051 | D191: 19852 | E191: Andes, Argentina/Chile
B192: Acamarachi | C192: 6046 | D192: 19836 | E192: Andes, Chile
B193: Mitre Peak | C193: 6010 | D193: 19718 | E193: Karakoram, Pakistan
B194: Wallqa Wallqa | C194: 6025 | D194: 19767 | E194: Andes, Peru
B195: Uturunku | C195: 6020 | D195: 19751 | E195: Andes, Bolivia
B196: Logan | C196: 5959 | D196: 19551 | E196: Saint Elias Mountains | F196: Yukon, Canada – Highest in Canada
B197: Alpamayo | C197: 5947 | D197: 19511 | E197: Andes | F197: Peru
B198: Cerro Lípez | C198: 5929 | D198: 19452 | E198: Andes | F198: Bolivia
B199: Licancabur | C199: 5920 | D199: 19423 | E199: Andes | F199: Bolivia/Chile
B200: Cotopaxi | C200: 5897 | D200: 19347 | E200: Andes | F200: Ecuador – Second highest in Ecuador
B201: Kilimanjaro | C201: 5895 | D201: 19341 | F201: Tanzania – Highest in Africa
B202: Hkakabo Razi | C202: 5881 | D202: 19295 | E202: Himalayas | F202: Myanmar – Highest in Southeast Asia
... 1029 more rows

Sheet Trial
A1: FROM: | B1: Mark Biegert
A2: SUBJECT: | B2: Data Gathering for Mountains
A3: DATE: | B3: 2014-12-17
A5: User Name | B5: ziggle | C5: Input your user name in shaded box
A7: Here is my list of mountains over 5500 meters. Input your user name and press update. The table will fill in with strings of lat|long data.
C9: Blank Entries Filled in Manually | F9: For the Geoid calculation, I need a 360° angle.
G10: Geoid is computed using a separate program that require lat and long.
A11: Rank | B11: Mountain | C11: Geonames | D11: Latitude | E11: Longitude | F11: Long360 | G11: Geoid | H11: Metres | I11: Feet
A12: 1 | B12: Mount Everest | C12: 27.9881|86.9253 | D12: 27.9881 | E12: 86.9253 | F12: =IF(E12<0,E12+360,E12) -> 86.9253 | G12: -28.73 | H12: 8848 | I12: =CONVERT(_Data[[#This Row],[Metres]],"m","ft") -> 29028.87139
A13: 2 | B13: K2 | C13: 35.8813|76.5135 | D13: 35.8814 | E13: 76.5135 | F13: 76.5135 | G13: -22.37 | H13: 8611 | I13: =CONVERT(_Data[[#This Row],[Metres]],"m","ft") -> 28251.31234
A14: 3 | B14: Kangchenjunga | C14: 27.703|88.1474 | D14: 27.703 | E14: 88.1474 | F14: 88.1474 | G14: -30.37 | H14: 8586 | I14: =CONVERT(_Data[[#This Row],[Metres]],"m","ft") -> 28169.29134
A15: 4 | B15: Lhotse | C15: 27.9667|86.9333 | D15: 27.9667 | E15: 86.9333 | F15: 86.9333 | G15: -28.94 | H15: 8516 | I15: =CONVERT(_Data[[#This Row],[Metres]],"m","ft") -> 27939.63255
A16: 5 | B16: Makalu | C16: 27.8895|87.0895 | D16: 27.8895 | E16: 87.0895 | F16: =IF(E16<0,E16+360,E16) -> 87.0895 | G16: -30.28 | H16: 8462 | I16: =CONVERT(_Data[[#This Row],[Metres]],"m","ft") -> 27762.46719
A17: 6 | B17: Cho Oyu | C17: 28.094|86.661 | D17: 28.094 | E17: 86.661 | F17: =IF(E17<0,E17+360,E17) -> 86.661 | G17: -27.34 | H17: 8201 | I17: =CONVERT(_Data[[#This Row],[Metres]],"m","ft") -> 26906.16798
A18: 7 | B18: Dhaulagiri | C18: 28.6965|83.493 | D18: 28.6965 | E18: 83.493 | F18: 83.493 | G18: -39.52 | H18: 8167 | I18: =CONVERT(_Data[[#This Row],[Metres]],"m","ft") -> 26794.61942
A19: 8 | B19: Manaslu | C19: 28.5494|84.5619 | D19: 28.5494 | E19: 84.5619 | F19: 84.5619 | G19: -35.06 | H19: 8156 | I19: =CONVERT(_Data[[#This Row],[Metres]],"m","ft") -> 26758.53018
A20: 9 | B20: Nanga Parbat | C20: 35.2375|74.5892 | D20: 35.2375 | E20: 74.5892 | F20: 74.5892 | G20: -30.1 | H20: 8125 | I20: =CONVERT(_Data[[#This Row],[Metres]],"m","ft") -> 26656.82415
A21: 10 | B21: Annapurna | C21: 28.5961|83.8203 | D21: 28.5961 | E21: 83.8203 | F21: 83.8203 | G21: -38.78 | H21: 8091 | I21: =CONVERT(_Data[[#This Row],[Metres]],"m","ft") -> 26545.27559
A22: 11 | B22: Gasherbrum I | C22: 35.7208|76.7097 | D22: 35.7208 | E22: 76.7097 | F22: 76.7097 | G22: -21.85 | H22: 8068 | I22: =CONVERT(_Data[[#This Row],[Metres]],"m","ft") -> 26469.81627
A23: 12 | B23: Broad Peak | C23: 35.8106|76.5681 | D23: 35.8106 | E23: 76.5681 | F23: 76.5681 | G23: -22.26 | H23: 8047 | I23: =CONVERT(_Data[[#This Row],[Metres]],"m","ft") -> 26400.91864
A24: 13 | B24: Gasherbrum II | C24: 35.7586|76.6528 | D24: 35.7586 | E24: 76.6528 | F24: 76.6528 | G24: -21.99 | H24: 8035 | I24: =CONVERT(_Data[[#This Row],[Metres]],"m","ft") -> 26361.54856
A25: 14 | B25: Shishapangma | C25: 28.3545|85.776 | D25: 28.3545 | E25: 85.776 | F25: 85.776 | G25: -28.05 | H25: 8012 | I25: =CONVERT(_Data[[#This Row],[Metres]],"m","ft") -> 26286.08924
A26: 15 | B26: Gyachung Kang | C26: 28.098|86.7422 | D26: 28.098 | E26: 86.7422 | F26: 86.7422 | G26: -27.4 | H26: 7952 | I26: =CONVERT(_Data[[#This Row],[Metres]],"m","ft") -> 26089.23885
A27: 16 | B27: Gasherbrum III | C27: 35.7333|76.6333 | D27: 35.7333 | E27: 76.6333 | F27: 76.6333 | G27: -22.14 | H27: 7946 | I27: =CONVERT(_Data[[#This Row],[Metres]],"m","ft") -> 26069.55381
A28: 17 | B28: Annapurna II | D28: 28.539 | E28: 84.137 | F28: 84.137 | G28: -37.66 | H28: 7937 | I28: =CONVERT(_Data[[#This Row],[Metres]],"m","ft") -> 26040.02625
A29: 18 | B29: Gasherbrum IV | C29: 35.7667|76.6167 | D29: 35.7667 | E29: 76.6167 | F29: 76.6167 | G29: -22.13 | H29: 7932 | I29: =CONVERT(_Data[[#This Row],[Metres]],"m","ft") -> 26023.62205
A30: 19 | B30: Himalchuli | C30: 28.4355|84.6322 | D30: 28.4355 | E30: 84.6322 | F30: 84.6322 | G30: -37.43 | H30: 7893 | I30: =CONVERT(_Data[[#This Row],[Metres]],"m","ft") -> 25895.66929
A31: 20 | B31: Distaghil Sar | C31: 36.3258|75.1883 | D31: 36.3258 | E31: 75.1883 | F31: 75.1883 | G31: -29.44 | H31: 7885 | I31: =CONVERT(_Data[[#This Row],[Metres]],"m","ft") -> 25869.42257
A32: 21 | B32: Ngadi Chuli | C32: 28.5033|84.5675 | D32: 28.5033 | E32: 84.5675 | F32: 84.5675 | G32: -36.14 | H32: 7871 | I32: =CONVERT(_Data[[#This Row],[Metres]],"m","ft") -> 25823.49081
A33: 22 | B33: Nuptse | C33: 27.9664|86.89 | D33: 27.9664 | E33: 86.89 | F33: 86.89 | G33: -28.78 | H33: 7861 | I33: =CONVERT(_Data[[#This Row],[Metres]],"m","ft") -> 25790.68241
A34: 23 | B34: Khunyang Chhish | C34: 36.2052|75.2077 | D34: 36.2052 | E34: 75.2077 | F34: 75.2077 | G34: -29.15 | H34: 7852 | I34: =CONVERT(_Data[[#This Row],[Metres]],"m","ft") -> 25761.15486
A35: 24 | B35: Masherbrum | C35: 35.6428|76.3047 | D35: 35.6428 | E35: 76.3047 | F35: 76.3047 | G35: -24.32 | H35: 7821 | I35: =CONVERT(_Data[[#This Row],[Metres]],"m","ft") -> 25659.44882
A36: 25 | B36: Nanda Devi | C36: 30.4186|79.8497 | D36: 30.3767 | E36: 79.9708 | F36: 79.9708 | G36: -22.77 | H36: 7816 | I36: =CONVERT(_Data[[#This Row],[Metres]],"m","ft") -> 25643.04462
A37: 26 | B37: Chomo Lonzo | C37: 27.93|87.108 | D37: 27.93 | E37: 87.108 | F37: 87.108 | G37: -29.95 | H37: 7804 | I37: =CONVERT(_Data[[#This Row],[Metres]],"m","ft") -> 25603.67454
A38: 27 | B38: Batura Sar | C38: 36.51|74.5269 | D38: 36.51 | E38: 74.5269 | F38: 74.5269 | G38: -33.14 | H38: 7795 | I38: =CONVERT(_Data[[#This Row],[Metres]],"m","ft") -> 25574.14698
A39: 28 | B39: Kanjut Sar | C39: 36.205|75.4183 | D39: 36.205 | E39: 75.4183 | F39: 75.4183 | G39: -28.34 | H39: 7790 | I39: =CONVERT(_Data[[#This Row],[Metres]],"m","ft") -> 25557.74278
A40: 29 | B40: Rakaposhi | C40: 36.1422|74.5527 | D40: 36.1422 | E40: 74.5527 | F40: 74.5527 | G40: -31.88 | H40: 7788 | I40: =CONVERT(_Data[[#This Row],[Metres]],"m","ft") -> 25551.1811
A41: 30 | B41: Namcha Barwa | C41: 29.6305|95.0552 | D41: 29.6305 | E41: 95.0552 | F41: 95.0552 | G41: -39.75 | H41: 7782 | I41: =CONVERT(_Data[[#This Row],[Metres]],"m","ft") -> 25531.49606
A42: 31 | B42: Batura II | C42: 36.3|74.31 | D42: 36.3 | E42: 74.31 | F42: 74.31 | G42: -32.94 | H42: 7762 | I42: =CONVERT(_Data[[#This Row],[Metres]],"m","ft") -> 25465.87927
A43: 32 | B43: Kamet | C43: 30.9203|79.5936 | D43: 30.9203 | E43: 79.5936 | F43: 79.5936 | G43: -20.02 | H43: 7756 | I43: =CONVERT(_Data[[#This Row],[Metres]],"m","ft") -> 25446.19423
A44: 33 | B44: Saltoro Kangri | C44: 35.4002|76.8486 | D44: 35.4002 | E44: 76.8486 | F44: 76.8486 | G44: -22.15 | H44: 7742 | I44: =CONVERT(_Data[[#This Row],[Metres]],"m","ft") -> 25400.26247
A45: 34 | B45: Batura III | C45: 36.5308|74.5014 | D45: 36.5308 | E45: 74.5014 | F45: 74.5014 | G45: -33.2 | H45: 7729 | I45: =CONVERT(_Data[[#This Row],[Metres]],"m","ft") -> 25357.61155
A46: 35 | B46: Kongur Tagh | C46: 38.6333|75.3333 | D46: 38.6333 | E46: 75.3333 | F46: 75.3333 | G46: -33.98 | H46: 7719 | I46: =CONVERT(_Data[[#This Row],[Metres]],"m","ft") -> 25324.80315
A47: 36 | B47: Jannu | C47: 27.6827|88.0458 | D47: 27.6827 | E47: 88.0458 | F47: 88.0458 | G47: -31.06 | H47: 7710 | I47: =CONVERT(_Data[[#This Row],[Metres]],"m","ft") -> 25295.27559
A48: 37 | B48: Molamenqing | C48: 28.3547|85.8108 | D48: 28.3547 | E48: 85.8108 | F48: 85.8108 | G48: -27.86 | H48: 7710 | I48: =CONVERT(_Data[[#This Row],[Metres]],"m","ft") -> 25295.27559
A49: 38 | B49: Gurla Mandhata | C49: 30.4383|81.2992 | D49: 30.4383 | E49: 81.2992 | F49: 81.2992 | G49: -23.72 | H49: 7694 | I49: =CONVERT(_Data[[#This Row],[Metres]],"m","ft") -> 25242.78215
A50: 39 | B50: Tirich Mir | C50: 36.2458|71.8439 | D50: 36.2458 | E50: 71.8439 | F50: 71.8439 | G50: -30.86 | H50: 7690 | I50: =CONVERT(_Data[[#This Row],[Metres]],"m","ft") -> 25229.65879
A51: 40 | B51: Saser Kangri | C51: 34.865|77.7525 | D51: 34.865 | E51: 77.7525 | F51: 77.7525 | G51: -21.99 | H51: 7672 | I51: =CONVERT(_Data[[#This Row],[Metres]],"m","ft") -> 25170.60367
A52: 41 | B52: Chogolisa | C52: 35.6163|76.5777 | D52: 35.6163 | E52: 76.5777 | F52: 76.5777 | G52: -22.75 | H52: 7665 | I52: =CONVERT(_Data[[#This Row],[Metres]],"m","ft") -> 25147.6378
A53: 42 | B53: Shispare | C53: 36.4344|74.6692 | D53: 36.4344 | E53: 74.6692 | F53: 74.6692 | G53: -32.54 | H53: 7611 | I53: =CONVERT(_Data[[#This Row],[Metres]],"m","ft") -> 24970.47244
A54: 43 | B54: Changtse | C54: 28.0167|86.9 | D54: 28.0167 | E54: 86.9 | F54: 86.9 | G54: -28.4 | H54: 7583 | I54: =CONVERT(_Data[[#This Row],[Metres]],"m","ft") -> 24878.60892
A55: 44 | B55: Trivor | C55: 36.2875|75.0861 | D55: 36.2875 | E55: 75.0861 | F55: 75.0861 | G55: -29.87 | H55: 7577 | I55: =CONVERT(_Data[[#This Row],[Metres]],"m","ft") -> 24858.92388
A56: 45 | B56: Gangkhar Puensum | C56: 28.0486|90.4545 | D56: 28.0486 | E56: 90.4545 | F56: 90.4545 | G56: -31.07 | H56: 7570 | I56: =CONVERT(_Data[[#This Row],[Metres]],"m","ft") -> 24835.95801
A57: 46 | B57: Mount Gongga | C57: 29.5958|101.8792 | D57: 29.5958 | E57: 101.8792 | F57: 101.8792 | G57: -31.48 | H57: 7556 | I57: =CONVERT(_Data[[#This Row],[Metres]],"m","ft") -> 24790.02625
A58: 47 | B58: Annapurna III | D58: 28.539 | E58: 84 | F58: 84 | G58: -38.56 | H58: 7555 | I58: =CONVERT(_Data[[#This Row],[Metres]],"m","ft") -> 24786.74541
A59: 48 | B59: Kula Kangri | C59: 28.227|90.616 | D59: 28.227 | E59: 90.616 | F59: 90.616 | G59: -30.29 | H59: 7554 | I59: =CONVERT(_Data[[#This Row],[Metres]],"m","ft") -> 24783.46457
A60: 49 | B60: Chogolisa II | D60: 35.6163 | E60: 76.579 | F60: 76.579 | G60: -22.75 | H60: 7554 | I60: =CONVERT(_Data[[#This Row],[Metres]],"m","ft") -> 24783.46457
A61: 50 | B61: Muztagh Ata | C61: 38.2759|75.1161 | D61: 38.2759 | E61: 75.1161 | F61: 75.1161 | G61: -30.75 | H61: 7546 | I61: =CONVERT(_Data[[#This Row],[Metres]],"m","ft") -> 24757.21785
A62: 51 | B62: Skyang Kangri | C62: 35.9267|76.5675 | D62: 35.9267 | E62: 76.5675 | F62: 76.5675 | G62: -22 | H62: 7545 | I62: =CONVERT(_Data[[#This Row],[Metres]],"m","ft") -> 24753.93701
A63: 52 | B63: Yukshin Gardan Sar | C63: 36.2508|75.3732 | D63: 36.2508 | E63: 75.3732 | F63: 75.3732 | G63: -28.53 | H63: 7530 | I63: =CONVERT(_Data[[#This Row],[Metres]],"m","ft") -> 24704.72441
A64: 53 | B64: Annapurna IV | D64: 28.539 | E64: 84.087 | F64: 84.087 | G64: -37.98 | H64: 7525 | I64: =CONVERT(_Data[[#This Row],[Metres]],"m","ft") -> 24688.32021
A65: 54 | B65: Mamostong Kangri | C65: 35.1408|77.5775 | D65: 35.1408 | E65: 77.5775 | F65: 77.5775 | G65: -21.11 | H65: 7516 | I65: =CONVERT(_Data[[#This Row],[Metres]],"m","ft") -> 24658.79265
A66: 55 | B66: Ismoil Somoni Peak | C66: 38.9167|72.0167 | D66: 38.9167 | E66: 72.0167 | F66: 72.0167 | G66: -32.67 | H66: 7495 | I66: =CONVERT(_Data[[#This Row],[Metres]],"m","ft") -> 24589.89501
A67: 56 | B67: Pumari Chhish | C67: 36.2111|75.2528 | D67: 36.2111 | E67: 75.2528 | F67: 75.2528 | G67: -28.97 | H67: 7492 | I67: =CONVERT(_Data[[#This Row],[Metres]],"m","ft") -> 24580.05249
A68: 57 | B68: Noshaq | C68: 36.4317|71.8283 | D68: 36.4317 | E68: 71.8283 | F68: 71.8283 | G68: -30.84 | H68: 7492 | I68: =CONVERT(_Data[[#This Row],[Metres]],"m","ft") -> 24580.05249
A69: 58 | B69: Passu Sar | C69: 36.4878|74.5878 | D69: 36.4878 | E69: 74.5878 | F69: 74.5878 | G69: -32.95 | H69: 7476 | I69: =CONVERT(_Data[[#This Row],[Metres]],"m","ft") -> 24527.55906
A70: 59 | B70: Malubiting | C70: 36.0389|74.9008 | D70: 36.0389 | E70: 74.9008 | F70: 74.9008 | G70: -30.03 | H70: 7458 | I70: =CONVERT(_Data[[#This Row],[Metres]],"m","ft") -> 24468.50394
A71: 60 | B71: Gangapurna | D71: 28.606 | E71: 83.965 | F71: 83.965 | G71: -37.41 | H71: 7455 | I71: =CONVERT(_Data[[#This Row],[Metres]],"m","ft") -> 24458.66142
A72: 61 | B72: Jengish Chokusu | C72: 42.0358|80.1292 | D72: 42.0358 | E72: 80.1292 | F72: 80.1292 | G72: -38.23 | H72: 7439 | I72: =CONVERT(_Data[[#This Row],[Metres]],"m","ft") -> 24406.16798
A73: 62 | B73: K12 (mountain) | C73: 35.3213|76.9854 | D73: 35.32133333 | E73: 76.985 | F73: 76.985 | G73: -21.86 | H73: 7428 | I73: =CONVERT(_Data[[#This Row],[Metres]],"m","ft") -> 24370.07874
A74: 63 | B74: Istor-o-Nal | C74: 36.3869|71.8892 | D74: 36.3869 | E74: 71.8892 | F74: 71.8892 | G74: -30.8 | H74: 7403 | I74: =CONVERT(_Data[[#This Row],[Metres]],"m","ft") -> 24288.05774
A75: 64 | B75: Ghent Kangri | C75: 35.5175|76.8003 | D75: 35.5175 | E75: 76.8003 | F75: 76.8003 | G75: -21.99 | H75: 7401 | I75: =CONVERT(_Data[[#This Row],[Metres]],"m","ft") -> 24281.49606
A76: 65 | B76: Haramosh Peak | C76: 35.8414|74.8978 | D76: 35.8414 | E76: 74.8978 | F76: =IF(E76<0,E76+360,E76) -> 74.8978 | G76: -29.42 | H76: 7397 | I76: =CONVERT(_Data[[#This Row],[Metres]],"m","ft") -> 24268.3727
A77: 66 | B77: Kabru | C77: 27.635|88.1183 | D77: 27.635 | E77: 88.1183 | F77: 88.1183 | G77: -31.34 | H77: 7394 | I77: =CONVERT(_Data[[#This Row],[Metres]],"m","ft") -> 24258.53018
A78: 67 | B78: Ultar | C78: 36.3997|74.6919 | D78: 36.3997 | E78: 74.6919 | F78: 74.6919 | G78: -32.34 | H78: 7388 | I78: =CONVERT(_Data[[#This Row],[Metres]],"m","ft") -> 24238.84514
A79: 68 | B79: Rimo I | C79: 35.3558|77.3681 | D79: 35.3558 | E79: 77.3681 | F79: 77.3681 | G79: -20.71 | H79: 7385 | I79: =CONVERT(_Data[[#This Row],[Metres]],"m","ft") -> 24229.00262
A80: 69 | B80: Sherpi Kangri | C80: 35.465|76.7722 | D80: 35.465 | E80: 76.7722 | F80: 76.7722 | G80: -22.28 | H80: 7380 | I80: =CONVERT(_Data[[#This Row],[Metres]],"m","ft") -> 24212.59843
A81: 70 | B81: Labuche Kang | C81: 28.3042|86.3508 | D81: 28.3042 | E81: 86.3508 | F81: 86.3508 | G81: -26.6 | H81: 7367 | I81: =CONVERT(_Data[[#This Row],[Metres]],"m","ft") -> 24169.94751
A82: 71 | B82: Kirat Chuli | C82: 27.7833|88.2 | D82: 27.7833 | E82: 88.2 | F82: 88.2 | G82: -29.42 | H82: 7365 | I82: =CONVERT(_Data[[#This Row],[Metres]],"m","ft") -> 24163.38583
A83: 72 | B83: Skil Brum | C83: 35.8508|76.4292 | D83: 35.8508 | E83: 76.4292 | F83: 76.4292 | G83: -22.93 | H83: 7360 | I83: =CONVERT(_Data[[#This Row],[Metres]],"m","ft") -> 24146.98163
A84: 73 | B84: Gimmigela Chuli | D84: 27.73833333 | E84: 88.15 | F84: 88.15 | G84: -30.01 | H84: 7350 | I84: =CONVERT(_Data[[#This Row],[Metres]],"m","ft") -> 24114.17323
A85: 74 | B85: Bojohagur Duanasir | C85: 36.3997|74.6919 | D85: 36.3997 | E85: 74.6919 | F85: 74.6919 | G85: -32.34 | H85: 7329 | I85: =CONVERT(_Data[[#This Row],[Metres]],"m","ft") -> 24045.27559
A86: 75 | B86: Chamlang | C86: 27.7756|86.9797 | D86: 27.7756 | E86: 86.9797 | F86: 86.9797 | G86: -31.42 | H86: 7319 | I86: =CONVERT(_Data[[#This Row],[Metres]],"m","ft") -> 24012.46719
A87: 76 | B87: Jomolhari | C87: 27.8242|89.27 | D87: 27.82416667 | E87: 89.27 | F87: 89.27 | G87: -28.4 | H87: 7314 | I87: =CONVERT(_Data[[#This Row],[Metres]],"m","ft") -> 23996.06299
A88: 77 | B88: Baltoro Kangri | C88: 35.648|76.6698 | D88: 35.648 | E88: 76.6698 | F88: 76.6698 | G88: -22.2 | H88: 7312 | I88: =CONVERT(_Data[[#This Row],[Metres]],"m","ft") -> 23989.50131
A89: 78 | B89: Siguang Ri | D89: 28.15 | E89: 86.683 | F89: 86.683 | G89: -27.05 | H89: 7308 | I89: =CONVERT(_Data[[#This Row],[Metres]],"m","ft") -> 23976.37795
A90: 79 | B90: The Crown (mountain) | C90: 36.1083|76.2125 | D90: 36.108333 | E90: 76.213 | F90: 76.213 | G90: -23.86 | H90: 7295 | I90: =CONVERT(_Data[[#This Row],[Metres]],"m","ft") -> 23933.72703
A91: 80 | B91: Gyala Peri | C91: 29.8142|94.9683 | D91: 29.8142 | E91: 94.9683 | F91: 94.9683 | G91: -38.59 | H91: 7294 | I91: =CONVERT(_Data[[#This Row],[Metres]],"m","ft") -> 23930.44619
A92: 81 | B92: Porong Ri | D92: 28.386944 | E92: 85.719 | F92: 85.719 | G92: -28.06 | H92: 7292 | I92: =CONVERT(_Data[[#This Row],[Metres]],"m","ft") -> 23923.88451
A93: 82 | B93: Baintha Brakk | C93: 35.9478|75.7536 | D93: 35.9478 | E93: 75.7536 | F93: 75.7536 | G93: -27.17 | H93: 7285 | I93: =CONVERT(_Data[[#This Row],[Metres]],"m","ft") -> 23900.91864
A94: 83 | B94: Yutmaru Sar | D94: 36.233333 | E94: 75.367 | F94: 75.367 | G94: -28.55 | H94: 7283 | I94: =CONVERT(_Data[[#This Row],[Metres]],"m","ft") -> 23894.35696
A95: 84 | B95: K6 (mountain) | C95: 35.4183|76.5517 | D95: 35.4183 | E95: 76.5517 | F95: 76.5517 | G95: -23.61 | H95: 7282 | I95: =CONVERT(_Data[[#This Row],[Metres]],"m","ft") -> 23891.07612
A96: 85 | B96: Kangpenqing | D96: 28.55 | E96: 85.55 | F96: 85.55 | G96: -28.12 | H96: 7281 | I96: =CONVERT(_Data[[#This Row],[Metres]],"m","ft") -> 23887.79528
A97: 86 | B97: Muztagh Tower | C97: 35.8283|76.3608 | D97: 35.8283 | E97: 76.3608 | F97: 76.3608 | G97: -23.43 | H97: 7273 | I97: =CONVERT(_Data[[#This Row],[Metres]],"m","ft") -> 23861.54856
A98: 87 | B98: Mana Peak | D98: 32.84 | E98: 79.417 | F98: 79.417 | G98: -25 | H98: 7272 | I98: =CONVERT(_Data[[#This Row],[Metres]],"m","ft") -> 23858.26772
A99: 88 | B99: Diran | C99: 36.1222|74.6606 | D99: 36.1222 | E99: 74.6606 | F99: 74.6606 | G99: -31.39 | H99: 7257 | I99: =CONVERT(_Data[[#This Row],[Metres]],"m","ft") -> 23809.05512
A100: 89 | B100: Apsarasas Kangri | D100: 35.53333333 | E100: 77.15 | F100: 77.15 | G100: -20.89 | H100: 7245 | I100: =CONVERT(_Data[[#This Row],[Metres]],"m","ft") -> 23769.68504
A101: 90 | B101: Langtang Lirung | C101: 28.2561|85.5194 | D101: 28.2561 | E101: 85.5194 | F101: 85.5194 | G101: -31.62 | H101: 7227 | I101: =CONVERT(_Data[[#This Row],[Metres]],"m","ft") -> 23710.62992
A102: 91 | B102: Annapurna South | D102: 28.518 | E102: 83.806 | F102: 83.806 | G102: -40.4 | H102: 7219 | I102: =CONVERT(_Data[[#This Row],[Metres]],"m","ft") -> 23684.3832
A103: 92 | B103: Khartaphu | D103: 28.06333333 | E103: 86.977 | F103: 86.977 | G103: -28.37 | H103: 7213 | I103: =CONVERT(_Data[[#This Row],[Metres]],"m","ft") -> 23664.69816
A104: 93 | B104: Tongshanjiabu | C104: 28.1867|89.9575 | D104: 28.1867 | E104: 89.9575 | F104: 89.9575 | G104: -29.58 | H104: 7207 | I104: =CONVERT(_Data[[#This Row],[Metres]],"m","ft") -> 23645.01312
A105: 94 | B105: Langtang Ri | D105: 28.38138889 | E105: 85.684 | F105: 85.684 | G105: -28.32 | H105: 7205 | I105: =CONVERT(_Data[[#This Row],[Metres]],"m","ft") -> 23638.45144
A106: 95 | B106: Kangphu Kang | D106: 28.155 | E106: 90.063 | F106: 90.063 | G106: -29.61 | H106: 7204 | I106: =CONVERT(_Data[[#This Row],[Metres]],"m","ft") -> 23635.1706
A107: 96 | B107: Melungtse | C107: 27.972|86.4325 | D107: 27.972 | E107: 86.4325 | F107: 86.4325 | G107: -29.38 | H107: 7181 | I107: =CONVERT(_Data[[#This Row],[Metres]],"m","ft") -> 23559.71129
A108: 97 | B108: Liushi Shan | C108: 35.3158|80.9158 | D108: 35.3158 | E108: 80.9158 | F108: 80.9158 | G108: -25.5 | H108: 7167 | I108: =CONVERT(_Data[[#This Row],[Metres]],"m","ft") -> 23513.77953
A109: 98 | B109: Baruntse | C109: 27.8833|86.9833 | D109: 27.8833 | E109: 86.9833 | F109: 86.9833 | G109: -29.96 | H109: 7162 | I109: =CONVERT(_Data[[#This Row],[Metres]],"m","ft") -> 23497.37533
A110: 99 | B110: Pumori | C110: 28.0147|86.8281 | D110: 28.0147 | E110: 86.8281 | F110: 86.8281 | G110: -28.18 | H110: 7161 | I110: =CONVERT(_Data[[#This Row],[Metres]],"m","ft") -> 23494.09449
A111: 100 | B111: Nemjung | C111: 28.735|84.4167 | D111: 28.735 | E111: 84.4167 | F111: 84.4167 | G111: -32.01 | H111: 7140 | I111: =CONVERT(_Data[[#This Row],[Metres]],"m","ft") -> 23425.19685
A112: 101 | B112: Udren Zom | C112: 36.5172|71.9208 | D112: 36.5172 | E112: 71.9208 | F112: 71.9208 | G112: -30.66 | H112: 7140 | I112: =CONVERT(_Data[[#This Row],[Metres]],"m","ft") -> 23425.19685
A113: 102 | B113: Nun Kun | C113: 33.98|76.0217 | D113: 33.98 | E113: 76.0217 | F113: 76.0217 | G113: -24.8 | H113: 7135 | I113: =CONVERT(_Data[[#This Row],[Metres]],"m","ft") -> 23408.79265
A114: 103 | B114: Gauri Sankar | C114: 27.965|86.3355 | D114: 27.965 | E114: 86.3355 | F114: 86.3355 | G114: -30.28 | H114: 7134 | I114: =CONVERT(_Data[[#This Row],[Metres]],"m","ft") -> 23405.51181
A115: 104 | B115: Tilicho Peak | C115: 28.6844|83.8044 | D115: 28.6844 | E115: 83.8044 | F115: 83.8044 | G115: -37.31 | H115: 7134 | I115: =CONVERT(_Data[[#This Row],[Metres]],"m","ft") -> 23405.51181
A116: 105 | B116: Lenin Peak | C116: 39.3425|72.8776 | D116: 39.3425 | E116: 72.8776 | F116: 72.8776 | G116: -32.08 | H116: 7134 | I116: =CONVERT(_Data[[#This Row],[Metres]],"m","ft") -> 23405.51181
A117: 106 | B117: Api (mountain) | C117: 30.0042|80.9333 | D117: 30.0042 | E117: 80.9333 | F117: 80.9333 | G117: -29.76 | H117: 7132 | I117: =CONVERT(_Data[[#This Row],[Metres]],"m","ft") -> 23398.95013
A118: 107 | B118: Pauhunri | C118: 27.9533|88.8425 | D118: 27.9533 | E118: 88.8425 | F118: 88.8425 | G118: -28.12 | H118: 7128 | I118: =CONVERT(_Data[[#This Row],[Metres]],"m","ft") -> 23385.82677
A119: 108 | B119: Peak Korzhenevskaya | C119: 39.0573|72.0098 | D119: 39.0573 | E119: 72.0098 | F119: 72.0098 | G119: -33.19 | H119: 7105 | I119: =CONVERT(_Data[[#This Row],[Metres]],"m","ft") -> 23310.36745
A120: 109 | B120: Lunpo Gangri | C120: 29.8333|84.6133 | D120: 29.8333 | E120: 84.6133 | F120: 84.6133 | G120: -27.56 | H120: 7095 | I120: =CONVERT(_Data[[#This Row],[Metres]],"m","ft") -> 23277.55906
A121: 110 | B121: Dunagiri | C121: 30.5325|79.8339 | D121: 30.5325 | E121: 79.8339 | F121: 79.8339 | G121: -19.77 | H121: 7066 | I121: =CONVERT(_Data[[#This Row],[Metres]],"m","ft") -> 23182.4147
A122: 111 | B122: Kangto | C122: 27.865|92.5325 | D122: 27.865 | E122: 92.5325 | F122: 92.5325 | G122: -28.49 | H122: 7060 | I122: =CONVERT(_Data[[#This Row],[Metres]],"m","ft") -> 23162.72966
A123: 112 | B123: Nyegyi Kansang | C123: 27.9367|92.6667 | D123: 27.9367 | E123: 92.6667 | F123: 92.6667 | G123: -29.78 | H123: 7047 | I123: =CONVERT(_Data[[#This Row],[Metres]],"m","ft") -> 23120.07874
A124: 113 | B124: Kezhen Peak | C124: 35.925|76.175 | D124: 35.925 | E124: 76.175 | F124: 76.175 | G124: -24.52 | H124: 7038 | I124: =CONVERT(_Data[[#This Row],[Metres]],"m","ft") -> 23090.55118
A125: 114 | B125: Shah Dhar | C125: 36.6717|72.2317 | D125: 36.6717 | E125: 72.2317 | F125: 72.2317 | G125: -30.33 | H125: 7038 | I125: =CONVERT(_Data[[#This Row],[Metres]],"m","ft") -> 23090.55118
A126: 115 | B126: Spantik | C126: 36.0573|74.958 | D126: 36.0573 | E126: 74.958 | F126: 74.958 | G126: -29.85 | H126: 7027 | I126: =CONVERT(_Data[[#This Row],[Metres]],"m","ft") -> 23054.46194
A127: 116 | B127: Khan Tengri | C127: 42.2108|80.175 | D127: 42.2108 | E127: 80.175 | F127: 80.175 | G127: -38.02 | H127: 7010 | I127: =CONVERT(_Data[[#This Row],[Metres]],"m","ft") -> 22998.68766
A128: 117 | B128: Machapuchare | C128: 28.4975|83.946 | D128: 28.4975 | E128: 83.946 | F128: 83.946 | G128: -39.85 | H128: 6993 | I128: =CONVERT(_Data[[#This Row],[Metres]],"m","ft") -> 22942.91339
A129: 118 | B129: Kang Guru | C129: 28.6575|84.3014 | D129: 28.6575 | E129: 84.3014 | F129: 84.3014 | G129: -34.01 | H129: 6981 | I129: =CONVERT(_Data[[#This Row],[Metres]],"m","ft") -> 22903.54331
A130: 119 | B130: Lenin Peak | C130: 39.3425|72.8776 | D130: 39.3425 | E130: 72.8776 | F130: 72.8776 | G130: -32.08 | H130: 6974 | I130: =CONVERT(_Data[[#This Row],[Metres]],"m","ft") -> 22880.57743
A131: 120 | B131: Ulugh Muztagh | C131: 36.4125|87.3842 | D131: 36.4125 | E131: 87.3842 | F131: 87.3842 | G131: -38.46 | H131: 6973 | I131: =CONVERT(_Data[[#This Row],[Metres]],"m","ft") -> 22877.29659
A132: 121 | B132: Aconcagua | C132: -32.6533|-70.0111 | D132: -32.6533 | E132: -70.0111 | F132: 289.9889 | G132: 32.17 | H132: 6962 | I132: =CONVERT(_Data[[#This Row],[Metres]],"m","ft") -> 22841.20735
A133: 122 | B133: Lunkho e Dosare | C133: 36.7758|72.44 | D133: 36.7758 | E133: 72.44 | F133: 72.44 | G133: -30.27 | H133: 6901 | I133: =CONVERT(_Data[[#This Row],[Metres]],"m","ft") -> 22641.07612
A134: 123 | B134: Ojos del Salado | C134: -27.109|-68.541 | D134: -27.109 | E134: -68.541 | F134: 291.459 | G134: 43.06 | H134: 6891 | I134: =CONVERT(_Data[[#This Row],[Metres]],"m","ft") -> 22608.26772
A135: 124 | B135: Siniolchu | C135: 27.7114|88.3178 | D135: 27.7114 | E135: 88.3178 | F135: 88.3178 | G135: -29.52 | H135: 6888 | I135: =CONVERT(_Data[[#This Row],[Metres]],"m","ft") -> 22598.4252
A136: 125 | B136: Nanda Kot | C136: 30.2817|80.0683 | D136: 30.2817 | E136: 80.0683 | F136: 80.0683 | G136: -25.42 | H136: 6861 | I136: =CONVERT(_Data[[#This Row],[Metres]],"m","ft") -> 22509.84252
A137: 126 | B137: Angel Sar | C137: 35.8492|76.4906 | D137: 35.8492 | E137: 76.4906 | F137: 76.4906 | G137: -22.57 | H137: 6858 | I137: =CONVERT(_Data[[#This Row],[Metres]],"m","ft") -> 22500
A138: 127 | B138: Chongra Peak | C138: 35.3263|74.6776 | D138: 35.3263 | E138: 74.6776 | F138: 74.6776 | G138: -29.51 | H138: 6830 | I138: =CONVERT(_Data[[#This Row],[Metres]],"m","ft") -> 22408.13648
A139: 128 | B139: Ama Dablam | C139: 27.8611|86.8611 | D139: 27.8611 | E139: 86.8611 | F139: 86.8611 | G139: -29.87 | H139: 6812 | I139: =CONVERT(_Data[[#This Row],[Metres]],"m","ft") -> 22349.08136
A140: 129 | B140: Monte Pissis | C140: -27.7559|-68.798 | D140: -27.7559 | E140: -68.798 | F140: =IF(E140<0,E140+360,E140) -> 291.202 | G140: 40.41 | H140: 6795 | I140: =CONVERT(_Data[[#This Row],[Metres]],"m","ft") -> 22293.30709
A141: 130 | B141: Biarchedi | C141: 35.7031|76.4102 | D141: 35.7031 | E141: 76.4102 | F141: 76.4102 | G141: -23.46 | H141: 6781 | I141: =CONVERT(_Data[[#This Row],[Metres]],"m","ft") -> 22247.37533
A142: 131 | B142: Huascarán Sur | D142: -9.122 | E142: -76.604 | F142: 283.396 | G142: 21.02 | H142: 6768 | I142: =CONVERT(_Data[[#This Row],[Metres]],"m","ft") -> 22204.72441
A143: 132 | B143: Nevado Tres Cruces | C143: -27.0511|-68.8017 | D143: -27.0511 | E143: -68.8017 | F143: 291.1983 | G143: 42.19 | H143: 6749 | I143: =CONVERT(_Data[[#This Row],[Metres]],"m","ft") -> 22142.38845
A144: 133 | B144: Kawagarbo | C144: 28.4383|98.6833 | D144: 28.4383 | E144: 98.6833 | F144: 98.6833 | G144: -36.36 | H144: 6740 | I144: =CONVERT(_Data[[#This Row],[Metres]],"m","ft") -> 22112.86089
A145: 134 | B145: Llullaillaco | C145: -24.7199|-68.5369 | D145: -24.7199 | E145: -68.5369 | F145: 291.4631 | G145: 40.03 | H145: 6739 | I145: =CONVERT(_Data[[#This Row],[Metres]],"m","ft") -> 22109.58005
A146: 135 | B146: Cho Polu | C146: 27.9192|86.9819 | D146: 27.9192 | E146: 86.9819 | F146: 86.9819 | G146: -29.57 | H146: 6735 | I146: =CONVERT(_Data[[#This Row],[Metres]],"m","ft") -> 22096.45669
A147: 136 | B147: Mount Pandim | C147: 27.5775|88.2158 | D147: 27.5775 | E147: 88.2158 | F147: 88.2158 | G147: -31.76 | H147: 6691 | I147: =CONVERT(_Data[[#This Row],[Metres]],"m","ft") -> 21952.09974
A148: 137 | B148: Num Ri | C148: 27.8947|86.9708 | D148: 27.8947 | E148: 86.9708 | F148: 86.9708 | G148: -29.79 | H148: 6677 | I148: =CONVERT(_Data[[#This Row],[Metres]],"m","ft") -> 21906.16798
A149: 138 | B149: Gul Lasht Zom | D149: 36.33333333 | E149: 71.917 | F149: 71.917 | G149: -30.79 | H149: 6657 | I149: =CONVERT(_Data[[#This Row],[Metres]],"m","ft") -> 21840.55118
A150: 139 | B150: Huascarán Norte | D150: -9.121666667 | E150: -76.604 | F150: 283.396 | G150: 21.01 | H150: 6655 | I150: =CONVERT(_Data[[#This Row],[Metres]],"m","ft") -> 21833.9895
A151: 140 | B151: Khumbutse | C151: 28.0203|86.8731 | D151: 28.0203 | E151: 86.8731 | F151: 86.8731 | G151: -28.27 | H151: 6640 | I151: =CONVERT(_Data[[#This Row],[Metres]],"m","ft") -> 21784.7769
A152: 141 | B152: Mount Kailash | C152: 31.0628|81.3325 | D152: 31.0628 | E152: 81.3325 | F152: 81.3325 | G152: -24.67 | H152: 6638 | I152: =CONVERT(_Data[[#This Row],[Metres]],"m","ft") -> 21778.21522
A153: 142 | B153: Yerupajá | D153: -10.26666667 | E153: -76.9 | F153: 283.1 | G153: 25.64 | H153: 6635 | I153: =CONVERT(_Data[[#This Row],[Metres]],"m","ft") -> 21768.3727
A154: 143 | B154: Thamserku | C154: 27.7903|86.7875 | D154: 27.7903 | E154: 86.7875 | F154: 86.7875 | G154: -30.87 | H154: 6623 | I154: =CONVERT(_Data[[#This Row],[Metres]],"m","ft") -> 21729.00262
A155: 144 | B155: Incahuasi | C155: -27.042|-68.28 | D155: -27.042 | E155: -68.28 | F155: 291.72 | G155: 42.53 | H155: 6621 | I155: =CONVERT(_Data[[#This Row],[Metres]],"m","ft") -> 21722.44094
A156: 145 | B156: Manirang | C156: 31.9533|78.3667 | D156: 31.9533 | E156: 78.3667 | F156: 78.3667 | G156: -27.96 | H156: 6597 | I156: =CONVERT(_Data[[#This Row],[Metres]],"m","ft") -> 21643.70079
A157: 146 | B157: Nilkantha (mountain) | C157: 30.72|79.4 | D157: 30.72 | E157: 79.4 | F157: 79.4 | G157: -19.57 | H157: 6596 | I157: =CONVERT(_Data[[#This Row],[Metres]],"m","ft") -> 21640.41995
A158: 147 | B158: Sickle Moon Peak | C158: 33.6025|76.1317 | D158: 33.6025 | E158: 76.1317 | F158: 76.1317 | G158: -25.47 | H158: 6574 | I158: =CONVERT(_Data[[#This Row],[Metres]],"m","ft") -> 21568.24147
A159: 148 | B159: Phuparash Peak | C159: 36.0502|74.825 | D159: 36.0502 | E159: 74.825 | F159: 74.825 | G159: -30.39 | H159: 6574 | I159: =CONVERT(_Data[[#This Row],[Metres]],"m","ft") -> 21568.24147
A160: 149 | B160: Buni Zom | C160: 36.1542|72.3275 | D160: 36.1542 | E160: 72.3275 | F160: 72.3275 | G160: -30.28 | H160: 6551 | I160: =CONVERT(_Data[[#This Row],[Metres]],"m","ft") -> 21492.78215
A161: 150 | B161: Nevado Sajama | C161: -18.108|-68.883 | D161: -18.108 | E161: -68.883 | F161: 291.117 | G161: 44.28 | H161: 6542 | I161: =CONVERT(_Data[[#This Row],[Metres]],"m","ft") -> 21463.25459
A162: 151 | B162: Taboche | C162: 27.8967|86.7775 | D162: 27.8967 | E162: 86.7775 | F162: 86.7775 | G162: -29.3 | H162: 6501 | I162: =CONVERT(_Data[[#This Row],[Metres]],"m","ft") -> 21328.74016
A163: 152 | B163: Singu Chuli | C163: 28.5833|83.9 | D163: 28.5833 | E163: 83.9 | F163: 83.9 | G163: -38.38 | H163: 6501 | I163: =CONVERT(_Data[[#This Row],[Metres]],"m","ft") -> 21328.74016
A164: 153 | B164: Cerro El Muerto | C164: -27.0575|-68.4839 | D164: -27.0575 | E164: -68.4839 | F164: 291.5161 | G164: 42.98 | H164: 6488 | I164: =CONVERT(_Data[[#This Row],[Metres]],"m","ft") -> 21286.08924
A165: 154 | B165: Mera Peak | C165: 27.709|86.8685 | D165: 27.709 | E165: 86.8685 | F165: 86.8685 | G165: -32.33 | H165: 6476 | I165: =CONVERT(_Data[[#This Row],[Metres]],"m","ft") -> 21246.71916
A166: 155 | B166: Illimani | C166: -16.6539|-67.7847 | D166: -16.6539 | E166: -67.7847 | F166: 292.2153 | G166: 41.82 | H166: 6462 | I166: =CONVERT(_Data[[#This Row],[Metres]],"m","ft") -> 21200.7874
A167: 156 | B167: Hiunchuli | C167: 28.51|83.85 | D167: 28.51 | E167: 83.85 | F167: 83.85 | G167: -40.25 | H167: 6441 | I167: =CONVERT(_Data[[#This Row],[Metres]],"m","ft") -> 21131.88976
A168: 157 | B168: Cholatse | C168: 27.9198|86.766 | D168: 27.9198 | E168: 86.766 | F168: 86.766 | G168: -29.01 | H168: 6440 | I168: =CONVERT(_Data[[#This Row],[Metres]],"m","ft") -> 21128.60892
A169: 158 | B169: Janq'u Uma | C169: -15.8533|-68.5408 | D169: -15.8533 | E169: -68.5408 | F169: 291.4592 | G169: 46.18 | H169: 6427 | I169: =CONVERT(_Data[[#This Row],[Metres]],"m","ft") -> 21085.95801
A170: 159 | B170: Coropuna | C170: -15.5203|-72.6572 | D170: -15.5203 | E170: -72.6572 | F170: 287.3428 | G170: 43.61 | H170: 6425 | I170: =CONVERT(_Data[[#This Row],[Metres]],"m","ft") -> 21079.39633
A171: 160 | B171: Antofalla | C171: -25.567|-67.9106 | D171: -25.567 | E171: -67.9106 | F171: 292.0894 | G171: 42.55 | H171: 6409 | I171: =CONVERT(_Data[[#This Row],[Metres]],"m","ft") -> 21026.90289
A172: 161 | B172: Huandoy | C172: -9.0273|-77.6628 | D172: -9.0273 | E172: -77.6628 | F172: 282.3372 | G172: 20.63 | H172: 6395 | I172: =CONVERT(_Data[[#This Row],[Metres]],"m","ft") -> 20980.97113
A173: 162 | B173: Illampu | C173: -15.8167|-68.5333 | D173: -15.8167 | E173: -68.5333 | F173: 291.4667 | G173: 46.02 | H173: 6368 | I173: =CONVERT(_Data[[#This Row],[Metres]],"m","ft") -> 20892.38845
A174: 163 | B174: Kusum Kanguru | C174: 27.7306|86.7908 | D174: 27.7306 | E174: 86.7908 | F174: 86.7908 | G174: -31.94 | H174: 6367 | I174: =CONVERT(_Data[[#This Row],[Metres]],"m","ft") -> 20889.10761
A175: 164 | B175: Kinnaur Kailash | D175: 31.930556 | E175: 77.173 | F175: 77.173 | G175: -33.55 | H175: 6349 | I175: =CONVERT(_Data[[#This Row],[Metres]],"m","ft") -> 20830.05249
A176: 165 | B176: Parinacota (volcano) | D176: -18.166667 | E176: -69.15 | F176: 290.85 | G176: 44.5 | H176: 6348 | I176: =CONVERT(_Data[[#This Row],[Metres]],"m","ft") -> 20826.77165
A177: 166 | B177: Siula Grande | C177: -10.2947|-76.8917 | D177: -10.2947 | E177: -76.8917 | F177: 283.1083 | G177: 25.78 | H177: 6344 | I177: =CONVERT(_Data[[#This Row],[Metres]],"m","ft") -> 20813.64829
A178: 167 | B178: Bamba Dhura | C178: 30.44|80.28 | D178: 30.44 | E178: 80.28 | F178: 80.28 | G178: -23.64 | H178: 6334 | I178: =CONVERT(_Data[[#This Row],[Metres]],"m","ft") -> 20780.8399
A179: 168 | B179: Ampato | C179: -15.8167|-71.8833 | D179: -15.8167 | E179: -71.8833 | F179: 288.1167 | G179: 44.08 | H179: 6288 | I179: =CONVERT(_Data[[#This Row],[Metres]],"m","ft") -> 20629.92126
A180: 169 | B180: Pomerape | D180: -18.1258 | E180: -69.1275 | F180: 290.8725 | G180: 44.51 | H180: 6282 | I180: =CONVERT(_Data[[#This Row],[Metres]],"m","ft") -> 20610.23622
A181: 170 | B181: Amne Machin | C181: 34.7983|99.4625 | D181: 34.7983 | E181: 99.4625 | F181: 99.4625 | G181: -38.35 | H181: 6282 | I181: =CONVERT(_Data[[#This Row],[Metres]],"m","ft") -> 20610.23622
A182: 171 | B182: Salcantay | C182: -13.3336|-72.5444 | D182: -13.3336 | E182: -72.5444 | F182: 287.4556 | G182: 42.59 | H182: 6271 | I182: =CONVERT(_Data[[#This Row],[Metres]],"m","ft") -> 20574.14698
A183: 172 | B183: Chimborazo (volcano) | C183: -1.464|-78.815 | D183: -1.469167 | E183: -78.817 | F183: 281.183 | G183: 25.96 | H183: 6267 | I183: =CONVERT(_Data[[#This Row],[Metres]],"m","ft") -> 20561.02362
A184: 173 | B184: Kongde Ri | C184: 27.8047|86.6253 | D184: 27.8047 | E184: 86.6253 | F184: 86.6253 | G184: -30.99 | H184: 6187 | I184: =CONVERT(_Data[[#This Row],[Metres]],"m","ft") -> 20298.55643
A185: 174 | B185: Aucanquilcha | C185: -21.22|-68.4683 | D185: -21.22 | E185: -68.4683 | F185: 291.5317 | G185: 42.3 | H185: 6176 | I185: =CONVERT(_Data[[#This Row],[Metres]],"m","ft") -> 20262.46719
A186: 175 | B186: Mount McKinley | C186: 63.0694|-151.0072 | D186: 63.0694 | E186: -151.0072 | F186: 208.9928 | G186: 16.81 | H186: 6168 | I186: =CONVERT(_Data[[#This Row],[Metres]],"m","ft") -> 20236.22047
A187: 176 | B187: Imja Tse | C187: 27.921|86.936 | D187: 27.921 | E187: 86.936 | F187: 86.936 | G187: -29.38 | H187: 6160 | I187: =CONVERT(_Data[[#This Row],[Metres]],"m","ft") -> 20209.97375
A188: 177 | B188: Stok Kangri | C188: 33.9833|77.4333 | D188: 33.9833 | E188: 77.4333 | F188: 77.4333 | G188: -24.11 | H188: 6137 | I188: =CONVERT(_Data[[#This Row],[Metres]],"m","ft") -> 20134.51444
A189: 178 | B189: Pisang Peak | D189: 28.646667 | E189: 84.186 | F189: 84.186 | G189: -34.94 | H189: 6091 | I189: =CONVERT(_Data[[#This Row],[Metres]],"m","ft") -> 19983.5958
A190: 179 | B190: Huayna Potosí | D190: -16.2625 | E190: -68.154 | F190: 291.846 | G190: 44.49 | H190: 6088 | I190: =CONVERT(_Data[[#This Row],[Metres]],"m","ft") -> 19973.75328
A191: 180 | B191: Aracar | C191: -24.2872|-67.7928 | D191: -24.2872 | E191: -67.7928 | F191: 292.2072 | G191: 41.09 | H191: 6082 | I191: =CONVERT(_Data[[#This Row],[Metres]],"m","ft") -> 19954.06824
A192: 181 | B192: Chachakumani | C192: -15.9858|-68.3817 | D192: -15.9858 | E192: -68.3817 | F192: 291.6183 | G192: 45.83 | H192: 6074 | I192: =CONVERT(_Data[[#This Row],[Metres]],"m","ft") -> 19927.82152
A193: 182 | B193: Chachani | C193: -16.1914|-71.5297 | D193: -16.1914 | E193: -71.5297 | F193: 288.4703 | G193: 43.28 | H193: 6057 | I193: =CONVERT(_Data[[#This Row],[Metres]],"m","ft") -> 19872.04724
A194: 183 | B194: Acotango | D194: -18.3822 | E194: -69.0478 | F194: 290.9522 | G194: 44.38 | H194: 6052 | I194: =CONVERT(_Data[[#This Row],[Metres]],"m","ft") -> 19855.64304
A195: 184 | B195: Socompa | C195: -24.395|-68.245 | D195: -24.395 | E195: -68.245 | F195: 291.755 | G195: 40.33 | H195: 6051 | I195: =CONVERT(_Data[[#This Row],[Metres]],"m","ft") -> 19852.3622
A196: 185 | B196: Acamarachi | C196: -23.2931|-67.6197 | D196: -23.2931 | E196: -67.6197 | F196: 292.3803 | G196: 42.52 | H196: 6046 | I196: =CONVERT(_Data[[#This Row],[Metres]],"m","ft") -> 19835.95801
A197: 186 | B197: Wallqa Wallqa | C197: -15.8167|-71.8833 | D197: -15.8167 | E197: -71.8833 | F197: 288.1167 | G197: 44.08 | H197: 6025 | I197: =CONVERT(_Data[[#This Row],[Metres]],"m","ft") -> 19767.06037
A198: 187 | B198: Uturunku | C198: -22.27|-67.18 | D198: -22.27 | E198: -67.18 | F198: 292.82 | G198: 44.06 | H198: 6020 | I198: =CONVERT(_Data[[#This Row],[Metres]],"m","ft") -> 19750.65617
A199: 188 | B199: Mitre Peak, Pakistan | D199: 35.7 | E199: 76.48 | F199: 76.48 | G199: -23.05 | H199: 6010 | I199: =CONVERT(_Data[[#This Row],[Metres]],"m","ft") -> 19717.84777
A200: 189 | B200: Mount Logan | C200: 60.5672|-140.4028 | D200: 60.5672 | E200: -140.4028 | F200: 219.5972 | G200: 16.46 | H200: 5959 | I200: =CONVERT(_Data[[#This Row],[Metres]],"m","ft") -> 19550.52493
A201: 190 | B201: Alpamayo | C201: -8.8789|-77.6536 | D201: -8.8789 | E201: -77.6536 | F201: 282.3464 | G201: 18.96 | H201: 5947 | I201: =CONVERT(_Data[[#This Row],[Metres]],"m","ft") -> 19511.15486
A202: 191 | B202: Cerro Lípez | D202: -21.914 | E202: -66.885 | F202: 293.115 | G202: 43.37 | H202: 5929 | I202: =CONVERT(_Data[[#This Row],[Metres]],"m","ft") -> 19452.09974
A203: 192 | B203: Licancabur | C203: -22.8336|-67.8828 | D203: -22.8336 | E203: -67.8828 | F203: 292.1172 | G203: 41.68 | H203: 5920 | I203: =CONVERT(_Data[[#This Row],[Metres]],"m","ft") -> 19422.57218
... 18 more rows

Sheet CenterDistances
A1: FROM: | B1: Mark Biegert
A2: SUBJECT: | B2: Data Gathering for Mountains
A3: DATE: | B3: 2014-12-17
A5: Key Parameters
A6: a | B6: 6378137 | C6: Semi-major ellipsoide axis
A7: b | B7: 6356752.3 | C7: Semi-minor ellipsoid axis
A9: Summary Table
A11: Name | B11: Latitude | C11: Longitude | D11: Geoid | E11: Altitude | F11: Distance
A12: Chimborazo | B12: -1.469167 | C12: -78.817 | D12: 25.96 | E12: 6267 | F12: =(((_a^4*COS(B12*PI()/180)^2+_b^4*SIN(B12*PI()/180)^2)/(_a^2*COS(B12*PI()/180)^2+_b^2*SIN(B12*PI()/180)^2))+2*(D12+E12)*(_a^2*COS(B12*PI()/180)^2+_b^2*SIN(B12*PI()/180)^2)^0.5+(D12+E12)^2)^0.5 -> 6384416.02
A13: Huascarán Sur | B13: -9.122 | C13: -76.604 | D13: 21.02 | E13: 6768 | F13: 6384392.913
A14: Huascarán Norte | B14: -9.121666667 | C14: -76.604 | D14: 21.01 | E14: 6655 | F14: 6384279.942
A15: Yerupajá | B15: -10.26666667 | C15: -76.9 | D15: 25.64 | E15: 6635 | F15: 6384123.832
A16: Cotopaxi | B16: -0.6841 | C16: -78.438 | D16: 27.46 | E16: 5897 | F16: 6384058.437
A17: Huandoy | B17: -9.0273 | C17: -77.6628 | D17: 20.63 | E17: 6395 | F17: 6384030.446
A18: Mount Kilimanjaro | B18: -3.0758 | C18: 37.3528 | D18: -16.26 | E18: 5895 | F18: 6383954.685
A19: Cayambe (volcano) | B19: 0.029 | C19: -77.986 | D19: 24.45 | E19: 5790 | F19: 6383951.445
A20: Antisana | B20: -0.485 | C20: -78.1408 | D20: 26.06 | E20: 5753 | F20: 6383914.541
A21: Siula Grande | B21: -10.2947 | C21: -76.8917 | D21: 25.78 | E21: 6344 | F21: 6383829.326
A22: Alpamayo | B22: -8.8789 | C22: -77.6536 | D22: 18.96 | E22: 5947 | F22: 6383597.67
A23: Nevado Pisco | B23: -9.0016 | C23: -77.6292 | D23: 20.38 | E23: 5752 | F23: 6383390.142
A24: Salcantay | B24: -13.3336 | C24: -72.5444 | D24: 42.59 | E24: 6271 | F24: 6383322.228
A25: Pico Cristóbal Colón | B25: -10.838 | C25: -73.687 | D25: 27.24 | E25: 5776 | F25: 6383190.25
A26: Coropuna | B26: -15.5203 | C26: -72.6572 | D26: 43.61 | E26: 6425 | F26: 6383086.369
A27: Janq'u Uma | B27: -15.8533 | C27: -68.5408 | D27: 46.18 | E27: 6427 | F27: 6383026.696
A28: Illampu | B28: -15.8167 | C28: -68.5333 | D28: 46.02 | E28: 6368 | F28: 6382974.657
A29: Illimani | B29: -16.6539 | C29: -67.7847 | D29: 41.82 | E29: 6462 | F29: 6382897.891
A30: Ampato | B30: -15.8167 | C30: -71.8833 | D30: 44.08 | E30: 6288 | F30: 6382892.717
A31: Nevado Sajama | B31: -18.108 | C31: -68.883 | D31: 44.28 | E31: 6542 | F31: 6382673.07
A32: Chachakumani | B32: -15.9858 | C32: -68.3817 | D32: 45.83 | E32: 6074 | F32: 6382647.443
A33: Wallqa Wallqa | B33: -15.8167 | C33: -71.8833 | D33: 44.08 | E33: 6025 | F33: 6382629.717
A34: Huayna Potosí | B34: -16.2625 | C34: -68.154 | D34: 44.49 | E34: 6088 | F34: 6382605.388
A35: Chachani | B35: -16.1914 | C35: -71.5297 | D35: 43.28 | E35: 6057 | F35: 6382587.317
A36: Parinaquta (volcano) | B36: -18.166667 | C36: -69.15 | D36: 44.5 | E36: 6348 | F36: 6382466.422
A37: Pomerape | B37: -18.1258 | C37: -69.1275 | D37: 44.51 | E37: 6282 | F37: 6382409.4
A38: El Misti | B38: -16.294 | C38: -71.409 | D38: 43.09 | E38: 5822 | F38: 6382331.706
A39: Mount Everest | B39: 27.9881 | C39: 86.9253 | D39: -28.73 | E39: 8848 | F39: 6382277.412
A40: Nevado Mismi | B40: -15.5253 | C40: -71.6908 | D40: 45.71 | E40: 5597 | F40: 6382259.515
A41: Ubinas | B41: -16.3511 | C41: -70.9019 | D41: 44.07 | E41: 5672 | F41: 6382171.271
A42: Acotango | B42: -18.3822 | C42: -69.0478 | D42: 44.38 | E42: 6052 | F42: 6382122.72
A43: Kangchenjunga | B43: 27.703 | C43: 88.1474 | D43: -30.37 | E43: 8586 | F43: 6382101.252
A44: Lhotse | B44: 27.9667 | C44: 86.9333 | D44: -28.94 | E44: 8516 | F44: 6381951.791
A45: Nevado Anallajsi | B45: -17.9265 | C45: -68.9092 | D45: 44.3 | E45: 5750 | F45: 6381920.672
A46: Makalu | B46: 27.8895 | C46: 87.0895 | D46: -30.28 | E46: 8462 | F46: 6381920.186
A47: Cho Oyu | B47: 28.094 | C47: 86.661 | D47: -27.34 | E47: 8201 | F47: 6381599.159
A48: Aucanquilcha | B48: -21.22 | C48: -68.4683 | D48: 42.3 | E48: 6176 | F48: 6381574.097
A49: Pico de Orizaba | B49: 19.03 | C49: -97.27 | D49: -3.72 | E49: 5636 | F49: 6381512.708
A50: Manaslu | B50: 28.5494 | C50: 84.5619 | D50: -35.06 | E50: 8156 | F50: 6381405.125
A51: Dhaulagiri | B51: 28.6965 | C51: 83.493 | D51: -39.52 | E51: 8167 | F51: 6381365.702
A52: Gyachung Kang | B52: 28.098 | C52: 86.7422 | D52: -27.4 | E52: 7952 | F52: 6381348.865
A53: Shishapangma | B53: 28.3545 | C53: 85.776 | D53: -28.05 | E53: 8012 | F53: 6381328.797
A54: Annapurna | B54: 28.5961 | C54: 83.8203 | D54: -38.78 | E54: 8091 | F54: 6381321.83
A55: Nuptse | B55: 27.9664 | C55: 86.89 | D55: -28.78 | E55: 7861 | F55: 6381297.046
A56: Chomo Lonzo | B56: 27.93 | C56: 87.108 | D56: -29.95 | E56: 7804 | F56: 6381250.072
A57: Jannu | B57: 27.6827 | C57: 88.0458 | D57: -31.06 | E57: 7710 | F57: 6381230.771
A58: Llullaillaco | B58: -24.7199 | C58: -68.5369 | D58: 40.03 | E58: 6739 | F58: 6381202.157
A59: Annapurna II | B59: 28.539 | C59: 84.137 | D59: -37.66 | E59: 7937 | F59: 6381186.77
A60: Himalchuli | B60: 28.4355 | C60: 84.6322 | D60: -37.43 | E60: 7893 | F60: 6381175.24
A61: Cerro Lípez | B61: -21.914 | C61: -66.885 | D61: 43.37 | E61: 5929 | F61: 6381152.157
A62: Uturunku | B62: -22.27 | C62: -67.18 | D62: 44.06 | E62: 6020 | F62: 6381151.797
A63: Ngadi Chuli | B63: 28.5033 | C63: 84.5675 | D63: -36.14 | E63: 7871 | F63: 6381133.419
A64: Molamenqing | B64: 28.3547 | C64: 85.8108 | D64: -27.86 | E64: 7710 | F64: 6381026.926
A65: Changtse | B65: 28.0167 | C65: 86.9 | D65: -28.4 | E65: 7583 | F65: 6381003.939
A66: Gangkhar Puensum | B66: 28.0486 | C66: 90.4545 | D66: -31.07 | E66: 7570 | F66: 6380978.437
A67: Kabru | B67: 27.635 | C67: 88.1183 | D67: -31.34 | E67: 7394 | F67: 6380929.063
A68: Kula Kangri | B68: 28.227 | C68: 90.616 | D68: -30.29 | E68: 7554 | F68: 6380908.095
A69: Acamarachi | B69: -23.2931 | C69: -67.6197 | D69: 42.52 | E69: 6046 | F69: 6380905.218
A70: Licancabur | B70: -22.8336 | C70: -67.8828 | D70: 41.68 | E70: 5920 | F70: 6380901.289
A71: Kirat Chuli | B71: 27.7833 | C71: 88.2 | D71: -29.42 | E71: 7365 | F71: 6380856.629
A72: Gimmigela Chuli | B72: 27.73833333 | C72: 88.15 | D72: -30.01 | E72: 7350 | F72: 6380854.808
A73: Chamlang | B73: 27.7756 | C73: 86.9797 | D73: -31.42 | E73: 7319 | F73: 6380810.988
A74: Annapurna III | B74: 28.539 | C74: 84 | D74: -38.56 | E74: 7555 | F74: 6380803.871
A75: Jomolhari | B75: 27.82416667 | C75: 89.27 | D75: -28.4 | E75: 7314 | F75: 6380794.122
A76: Annapurna IV | B76: 28.539 | C76: 84.087 | D76: -37.98 | E76: 7525 | F76: =(((_a^4*COS(B76*PI()/180)^2+_b^4*SIN(B76*PI()/180)^2)/(_a^2*COS(B76*PI()/180)^2+_b^2*SIN(B76*PI()/180)^2))+2*(D76+E76)*(_a^2*COS(B76*PI()/180)^2+_b^2*SIN(B76*PI()/180)^2)^0.5+(D76+E76)^2)^0.5 -> 6380774.451
A77: Labuche Kang | B77: 28.3042 | C77: 86.3508 | D77: -26.6 | E77: 7367 | F77: 6380700.861
A78: Siguang Ri | B78: 28.15 | C78: 86.683 | D78: -27.05 | E78: 7308 | F78: 6380689.156
A79: Namcha Barwa | B79: 29.6305 | C79: 95.0552 | D79: -39.75 | E79: 7782 | F79: 6380685.114
A80: Gangapurna | B80: 28.606 | C80: 83.965 | D80: -37.41 | E80: 7455 | F80: 6380684.11
A81: Aracar | B81: -24.2872 | C81: -67.7928 | D81: 41.09 | E81: 6082 | F81: 6380667.445
A82: Ojos del Salado | B82: -27.109 | C82: -68.541 | D82: 43.06 | E82: 6891 | F82: 6380659.998
A83: Antofalla | B83: -25.567 | C83: -67.9106 | D83: 42.55 | E83: 6409 | F83: 6380632.778
A84: Baruntse | B84: 27.8833 | C84: 86.9833 | D84: -29.96 | E84: 7162 | F84: 6380622.415
A85: Khartaphu | B85: 28.06333333 | C85: 86.977 | D85: -28.37 | E85: 7213 | F85: 6380619.595
A86: Melungtse | B86: 27.972 | C86: 86.4325 | D86: -29.38 | E86: 7181 | F86: 6380614.725
A87: Socompa | B87: -24.395 | C87: -68.245 | D87: 40.33 | E87: 6051 | F87: 6380605.634
A88: Porong Ri | B88: 28.386944 | C88: 85.719 | D88: -28.06 | E88: 7292 | F88: 6380598.711
A89: Pumori | B89: 28.0147 | C89: 86.8281 | D89: -28.18 | E89: 7161 | F89: 6380582.776
A90: Kangphu Kang | B90: 28.155 | C90: 90.063 | D90: -29.61 | E90: 7204 | F90: 6380581.051
A91: Tongshanjiabu | B91: 28.1867 | C91: 89.9575 | D91: -29.58 | E91: 7207 | F91: 6380574.278
A92: Langtang Lirung | B92: 28.2561 | C92: 85.5194 | D92: -31.62 | E92: 7227 | F92: 6380570.753
A93: Gauri Sankar | B93: 27.965 | C93: 86.3355 | D93: -30.28 | E93: 7134 | F93: 6380568.979
A94: Pauhunri | B94: 27.9533 | C94: 88.8425 | D94: -28.12 | E94: 7128 | F94: 6380568.739
A95: Kangpenqing | B95: 28.55 | C95: 85.55 | D95: -28.12 | E95: 7281 | F95: 6380536.881
A96: Nevado Tres Cruces | B96: -27.0511 | C96: -68.8017 | D96: 42.19 | E96: 6749 | F96: 6380534.561
A97: Kangto | B97: 27.865 | C97: 92.5325 | D97: -28.49 | E97: 7060 | F97: 6380527.504
A98: Langtang Ri | B98: 28.38138889 | C98: 85.684 | D98: -28.32 | E98: 7205 | F98: 6380513.178
A99: Nanda Devi | B99: 30.3767 | C99: 79.9708 | D99: -22.77 | E99: 7816 | F99: 6380495.902
A100: Nyegyi Kansang | B100: 27.9367 | C100: 92.6667 | D100: -29.78 | E100: 7047 | F100: 6380491.185
A101: Mount Gongga | B101: 29.5958 | C101: 101.8792 | D101: -31.48 | E101: 7556 | F101: 6380478.465
A102: Annapurna South | B102: 28.518 | C102: 83.806 | D102: -40.4 | E102: 7219 | F102: 6380472.58
A103: Lascar Volcano | B103: -23.367 | C103: -67.733 | D103: 41.65 | E103: 5592 | F103: 6380430.404
A104: Incahuasi | B104: -27.042 | C104: -68.28 | D104: 42.53 | E104: 6621 | F104: 6380409.639
A105: Siniolchu | B105: 27.7114 | C105: 88.3178 | D105: -29.52 | E105: 6888 | F105: 6380401.54
A106: Monte Pissis | B106: -27.7559 | C106: -68.798 | D106: 40.41 | E106: 6795 | F106: 6380364.853
A107: Gurla Mandhata | B107: 30.4383 | C107: 81.2992 | D107: -23.72 | E107: 7694 | F107: 6380352.962
A108: Tilicho Peak | B108: 28.6844 | C108: 83.8044 | D108: -37.31 | E108: 7134 | F108: 6380338.702
A109: Nemjung | B109: 28.735 | C109: 84.4167 | D109: -32.01 | E109: 7140 | F109: 6380334.16
A110: Ama Dablam | B110: 27.8611 | C110: 86.8611 | D110: -29.87 | E110: 6812 | F110: 6380279.322
A111: Cerro El Muerto | B111: -27.0575 | C111: -68.4839 | D111: 42.98 | E111: 6488 | F111: 6380272.426
A112: Kamet | B112: 30.9203 | C112: 79.5936 | D112: -20.02 | E112: 7756 | F112: 6380261.414
A113: Machapuchare | B113: 28.4975 | C113: 83.946 | D113: -39.85 | E113: 6993 | F113: 6380253.52
A114: Mount Pandim | B114: 27.5775 | C114: 88.2158 | D114: -31.76 | E114: 6691 | F114: 6380243.186
A115: Kang Guru | B115: 28.6575 | C115: 84.3014 | D115: -34.01 | E115: 6981 | F115: 6380197.417
A116: Cho Polu | B116: 27.9192 | C116: 86.9819 | D116: -29.57 | E116: 6735 | F116: 6380184.776
A117: Gyala Peri | B117: 29.8142 | C117: 94.9683 | D117: -38.59 | E117: 7294 | F117: 6380139.486
A118: Num Ri | B118: 27.8947 | C118: 86.9708 | D118: -29.79 | E118: 6677 | F118: 6380134.085
A119: Thamserku | B119: 27.7903 | C119: 86.7875 | D119: -30.87 | E119: 6623 | F119: 6380111.037
A120: Khumbutse | B120: 28.0203 | C120: 86.8731 | D120: -28.27 | E120: 6640 | F120: 6380059.963
A121: Kawagarbo | B121: 28.4383 | C121: 98.6833 | D121: -36.36 | E121: 6740 | F121: 6380022.443
A122: Mera Peak | B122: 27.709 | C122: 86.8685 | D122: -32.33 | E122: 6476 | F122: 6379987.465
A123: Taboche | B123: 27.8967 | C123: 86.7775 | D123: -29.3 | E123: 6501 | F123: 6379957.961
A124: Lunpo Gangri | B124: 29.8333 | C124: 84.6133 | D124: -27.56 | E124: 7095 | F124: 6379945.392
A125: Api (mountain) | B125: 30.0042 | C125: 80.9333 | D125: -29.76 | E125: 7132 | F125: 6379925.275
A126: Cholatse | B126: 27.9198 | C126: 86.766 | D126: -29.01 | E126: 6440 | F126: 6379890.153
A127: Kusum Kanguru | B127: 27.7306 | C127: 86.7908 | D127: -31.94 | E127: 6367 | F127: 6379872.248
A128: Singu Chuli | B128: 28.5833 | C128: 83.9 | D128: -38.38 | E128: 6501 | F128: 6379736.233
A129: Dunagiri | B129: 30.5325 | C129: 79.8339 | D129: -19.77 | E129: 7066 | F129: 6379698.299
A130: Hiunchuli | B130: 28.51 | C130: 83.85 | D130: -40.25 | E130: 6441 | F130: 6379697.227
A131: Kongde Ri | B131: 27.8047 | C131: 86.6253 | D131: -30.99 | E131: 6187 | F131: 6379670.505
A132: Imja Tse | B132: 27.921 | C132: 86.936 | D132: -29.38 | E132: 6160 | F132: 6379609.415
A133: Nanda Kot | B133: 30.2817 | C133: 80.0683 | D133: -25.42 | E133: 6861 | F133: 6379569.037
A134: K2 | B134: 35.8814 | C134: 76.5135 | D134: -22.37 | E134: 8611 | F134: 6379419.86
A135: Pisang Peak | B135: 28.646667 | C135: 84.186 | D135: -34.94 | E135: 6091 | F135: 6379309.878
A136: Jade Dragon Snow Mountain | B136: 27.0983 | C136: 100.175 | D136: -35.91 | E136: 5596 | F136: 6379289.256
A137: Hkakabo Razi | B137: 28.3167 | C137: 97.4667 | D137: -38.65 | E137: 5881 | F137: 6379198.939
A138: Pokalde | B138: 27.9375 | C138: 86.8358 | D138: -28.91 | E138: 5745 | F138: 6379189.814
A139: Nilkantha (mountain) | B139: 30.72 | C139: 79.4 | D139: -19.57 | E139: 6596 | F139: 6379167.393
A140: Nanga Parbat | B140: 35.2375 | C140: 74.5892 | D140: -30.1 | E140: 8125 | F140: =(((_a^4*COS(B140*PI()/180)^2+_b^4*SIN(B140*PI()/180)^2)/(_a^2*COS(B140*PI()/180)^2+_b^2*SIN(B140*PI()/180)^2))+2*(D140+E140)*(_a^2*COS(B140*PI()/180)^2+_b^2*SIN(B140*PI()/180)^2)^0.5+(D140+E140)^2)^0.5 -> 6379152.902
A141: Mana Peak | B141: 32.84 | C141: 79.417 | D141: -25 | E141: 7272 | F141: 6379132.28
A142: Mount Kailash | B142: 31.0628 | C142: 81.3325 | D142: -24.67 | E142: 6638 | F142: 6379092.001
A143: Bamba Dhura | B143: 30.44 | C143: 80.28 | D143: -23.64 | E143: 6334 | F143: 6378992.496
A144: Aconcagua | B144: -32.6533 | C144: -70.0111 | D144: 32.17 | E144: 6962 | F144: 6378942.635
A145: Gasherbrum I | B145: 35.7208 | C145: 76.7097 | D145: -21.85 | E145: 8068 | F145: 6378934.109
A146: Gasherbrum II | B146: 35.7586 | C146: 76.6528 | D146: -21.99 | E146: 8035 | F146: 6378887.628
A147: Broad Peak | B147: 35.8106 | C147: 76.5681 | D147: -22.26 | E147: 8047 | F147: 6378880.994
A148: Saser Kangri | B148: 34.865 | C148: 77.7525 | D148: -21.99 | E148: 7672 | F148: 6378838.368
A149: Gasherbrum III | B149: 35.7333 | C149: 76.6333 | D149: -22.14 | E149: 7946 | F149: 6378807.409
A150: Gasherbrum IV | B150: 35.7667 | C150: 76.6167 | D150: -22.13 | E150: 7932 | F150: 6378781.628
A151: Manirang | B151: 31.9533 | C151: 78.3667 | D151: -27.96 | E151: 6597 | F151: 6378752.672
A152: Saltoro Kangri | B152: 35.4002 | C152: 76.8486 | D152: -22.15 | E152: 7742 | F152: 6378720.723
A153: Masherbrum | B153: 35.6428 | C153: 76.3047 | D153: -24.32 | E153: 7821 | F153: 6378712.152
A154: Nun Kun | B154: 33.98 | C154: 76.0217 | D154: -24.8 | E154: 7135 | F154: 6378605.664
A155: Mamostong Kangri | B155: 35.1408 | C155: 77.5775 | D155: -21.11 | E155: 7516 | F155: 6378586.794
A156: Chogolisa | B156: 35.6163 | C156: 76.5777 | D156: -22.75 | E156: 7665 | F156: 6378567.064
A157: Khunyang Chhish | B157: 36.2052 | C157: 75.2077 | D157: -29.15 | E157: 7852 | F157: 6378539.389
A158: Distaghil Sar | B158: 36.3258 | C158: 75.1883 | D158: -29.44 | E158: 7885 | F158: 6378529.271
A159: Kinnaur Kailash | B159: 31.930556 | C159: 77.173 | D159: -33.55 | E159: 6349 | F159: 6378506.677
A160: Rakaposhi | B160: 36.1422 | C160: 74.5527 | D160: -31.88 | E160: 7788 | F160: 6378495.008
A161: Kanjut Sar | B161: 36.205 | C161: 75.4183 | D161: -28.34 | E161: 7790 | F161: 6378478.27
A162: Chogolisa II | B162: 35.6163 | C162: 76.579 | D162: -22.75 | E162: 7554 | F162: 6378456.064
A163: K12 (mountain) | B163: 35.32133333 | C163: 76.985 | D163: -21.86 | E163: 7428 | F163: 6378434.722
A164: Batura II | B164: 36.3 | C164: 74.31 | D164: -32.94 | E164: 7762 | F164: 6378411.939
A165: Rimo I | B165: 35.3558 | C165: 77.3681 | D165: -20.71 | E165: 7385 | F165: 6378380.767
A166: Batura Sar | B166: 36.51 | C166: 74.5269 | D166: -33.14 | E166: 7795 | F166: 6378370.048
A167: Tirich Mir | B167: 36.2458 | C167: 71.8439 | D167: -30.86 | E167: 7690 | F167: 6378361.268
A168: Ghent Kangri | B168: 35.5175 | C168: 76.8003 | D168: -21.99 | E168: 7401 | F168: 6378338.624
A169: Skyang Kangri | B169: 35.9267 | C169: 76.5675 | D169: -22 | E169: 7545 | F169: 6378338.216
A170: Sherpi Kangri | B170: 35.465 | C170: 76.7722 | D170: -22.28 | E170: 7380 | F170: 6378335.809
A171: Batura III | B171: 36.5308 | C171: 74.5014 | D171: -33.2 | E171: 7729 | F171: 6378296.58
A172: K6 (mountain) | B172: 35.4183 | C172: 76.5517 | D172: -23.61 | E172: 7282 | F172: 6378252.903
A173: Trivor | B173: 36.2875 | C173: 75.0861 | D173: -29.87 | E173: 7577 | F173: 6378234.45
A174: Shispare | B174: 36.4344 | C174: 74.6692 | D174: -32.54 | E174: 7611 | F174: 6378213.557
A175: Haramosh Peak | B175: 35.8414 | C175: 74.8978 | D175: -29.42 | E175: 7397 | F175: 6378212.955
A176: Malubiting | B176: 36.0389 | C176: 74.9008 | D176: -30.03 | E176: 7458 | F176: 6378203.471
A177: Baltoro Kangri | B177: 35.648 | C177: 76.6698 | D177: -22.2 | E177: 7312 | F177: 6378203.441
A178: Yukshin Gardan Sar | B178: 36.2508 | C178: 75.3732 | D178: -28.53 | E178: 7530 | F178: 6378201.824
A179: Skil Brum | B179: 35.8508 | C179: 76.4292 | D179: -22.93 | E179: 7360 | F179: 6378179.123
A180: Apsarasas Kangri | B180: 35.53333333 | C180: 77.15 | D180: -20.89 | E180: 7245 | F180: 6378178.151
A181: Pumari Chhish | B181: 36.2111 | C181: 75.2528 | D181: -28.97 | E181: 7492 | F181: 6378177.477
A182: Sickle Moon Peak | B182: 33.6025 | C182: 76.1317 | D182: -25.47 | E182: 6574 | F182: 6378173.825
A183: Liushi Shan | B183: 35.3158 | C183: 80.9158 | D183: -25.5 | E183: 7167 | F183: 6378172.027
A184: Muztagh Tower | B184: 35.8283 | C184: 76.3608 | D184: -23.43 | E184: 7273 | F184: 6378099.575
A185: Noshaq | B185: 36.4317 | C185: 71.8283 | D185: -30.84 | E185: 7492 | F185: 6378097.218
A186: Baintha Brakk | B186: 35.9478 | C186: 75.7536 | D186: -27.17 | E186: 7285 | F186: 6378065.582
A187: Passu Sar | B187: 36.4878 | C187: 74.5878 | D187: -32.95 | E187: 7476 | F187: 6378059.143
A188: Istor-o-Nal | B188: 36.3869 | C188: 71.8892 | D188: -30.8 | E188: 7403 | F188: 6378024.194
A189: The Crown (mountain) | B189: 36.108333 | C189: 76.213 | D189: -23.86 | E189: 7295 | F189: 6378022.038
A190: Ultar | B190: 36.3997 | C190: 74.6919 | D190: -32.34 | E190: 7388 | F190: 6378003.102
A191: Diran | B191: 36.1222 | C191: 74.6606 | D191: -31.39 | E191: 7257 | F191: 6377971.592
A192: Yutmaru Sar | B192: 36.233333 | C192: 75.367 | D192: -28.55 | E192: 7283 | F192: 6377961.006
A193: Bojohagur Duanasir | B193: 36.3997 | C193: 74.6919 | D193: -32.34 | E193: 7329 | F193: 6377944.102
A194: Kezhen Peak | B194: 35.925 | C194: 76.175 | D194: -24.52 | E194: 7038 | F194: 6377829.299
A195: Chongra Peak | B195: 35.3263 | C195: 74.6776 | D195: -29.51 | E195: 6830 | F195: 6377827.331
A196: Spantik | B196: 36.0573 | C196: 74.958 | D196: -29.85 | E196: 7027 | F196: 6377766.135
A197: Udren Zom | B197: 36.5172 | C197: 71.9208 | D197: -30.66 | E197: 7140 | F197: 6377714.967
A198: Angel Sar | B198: 35.8492 | C198: 76.4906 | D198: -22.57 | E198: 6858 | F198: 6377678.051
A199: Biarchedi | B199: 35.7031 | C199: 76.4102 | D199: -23.46 | E199: 6781 | F199: 6377651.751
A200: Stok Kangri | B200: 33.9833 | C200: 77.4333 | D200: -24.11 | E200: 6137 | F200: 6377607.22
A201: Ulugh Muztagh | B201: 36.4125 | C201: 87.3842 | D201: -38.46 | E201: 6973 | F201: 6377577.431
A202: Shah Dhar | B202: 36.6717 | C202: 72.2317 | D202: -30.33 | E202: 7038 | F202: 6377558.232
A203: Kongur Tagh | B203: 38.6333 | C203: 75.3333 | D203: -33.98 | E203: 7719 | F203: 6377529.047
... 18 more rows

Sheet ShortList
A1: FROM: | B1: Mark Biegert
A2: SUBJECT: | B2: Short List for Post
A3: DATE: | B3: 2013-12-17
A5: Name | B5: Latitude (decimal °) | C5: Longitude (decimal °) | D5: Geoid (m) | E5: Elevation (m) | F5: Distance (km)
A6: Chimborazo | B6: -1.469167 | C6: -78.817 | D6: 25.96 | E6: 6267 | F6: 6384416.02
A7: Huascarán Sur | B7: -9.122 | C7: -76.604 | D7: 21.02 | E7: 6768 | F7: 6384392.913
A8: Huascarán Norte | B8: -9.121666667 | C8: -76.604 | D8: 21.01 | E8: 6655 | F8: 6384279.942
A9: Yerupajá | B9: -10.26666667 | C9: -76.9 | D9: 25.64 | E9: 6635 | F9: 6384123.832
A10: Cotopaxi | B10: -0.6841 | C10: -78.438 | D10: 27.46 | E10: 5897 | F10: 6384058.437
A11: Huandoy | B11: -9.0273 | C11: -77.6628 | D11: 20.63 | E11: 6395 | F11: 6384030.446
A12: Mount Kilimanjaro | B12: -3.0758 | C12: 37.3528 | D12: -16.26 | E12: 5895 | F12: 6383954.685
A13: Cayambe (volcano) | B13: 0.029 | C13: -77.986 | D13: 24.45 | E13: 5790 | F13: 6383951.445
A14: Antisana | B14: -0.485 | C14: -78.1408 | D14: 26.06 | E14: 5753 | F14: 6383914.541
A15: Siula Grande | B15: -10.2947 | C15: -76.8917 | D15: 25.78 | E15: 6344 | F15: 6383829.326
A16: Alpamayo | B16: -8.8789 | C16: -77.6536 | D16: 18.96 | E16: 5947 | F16: 6383597.67
A17: Nevado Pisco | B17: -9.0016 | C17: -77.6292 | D17: 20.38 | E17: 5752 | F17: 6383390.142
A18: Salcantay | B18: -13.3336 | C18: -72.5444 | D18: 42.59 | E18: 6271 | F18: 6383322.228
A19: Pico Cristóbal Colón | B19: -10.838 | C19: -73.687 | D19: 27.24 | E19: 5776 | F19: 6383190.25
A20: Coropuna | B20: -15.5203 | C20: -72.6572 | D20: 43.61 | E20: 6425 | F20: 6383086.369
A21: Janq'u Uma | B21: -15.8533 | C21: -68.5408 | D21: 46.18 | E21: 6427 | F21: 6383026.696
A22: Illampu | B22: -15.8167 | C22: -68.5333 | D22: 46.02 | E22: 6368 | F22: 6382974.657
A23: Illimani | B23: -16.6539 | C23: -67.7847 | D23: 41.82 | E23: 6462 | F23: 6382897.891
A24: Ampato | B24: -15.8167 | C24: -71.8833 | D24: 44.08 | E24: 6288 | F24: 6382892.717
A25: Nevado Sajama | B25: -18.108 | C25: -68.883 | D25: 44.28 | E25: 6542 | F25: 6382673.07
A26: Chachakumani | B26: -15.9858 | C26: -68.3817 | D26: 45.83 | E26: 6074 | F26: 6382647.443
A27: Wallqa Wallqa | B27: -15.8167 | C27: -71.8833 | D27: 44.08 | E27: 6025 | F27: 6382629.717
A28: Huayna Potosí | B28: -16.2625 | C28: -68.154 | D28: 44.49 | E28: 6088 | F28: 6382605.388
A29: Chachani | B29: -16.1914 | C29: -71.5297 | D29: 43.28 | E29: 6057 | F29: 6382587.317
A30: Parinaquta (volcano) | B30: -18.166667 | C30: -69.15 | D30: 44.5 | E30: 6348 | F30: 6382466.422
A31: Pomerape | B31: -18.1258 | C31: -69.1275 | D31: 44.51 | E31: 6282 | F31: 6382409.4
A32: El Misti | B32: -16.294 | C32: -71.409 | D32: 43.09 | E32: 5822 | F32: 6382331.706
A33: Mount Everest | B33: 27.9881 | C33: 86.9253 | D33: -28.73 | E33: 8848 | F33: 6382277.412
